Publisher Label,Publisher URI,"Supplier ID","Supplier","Invoice No.","Amount (£)","Purpose","Transaction Number","Payment Date","Organisational Unit","Cost Centre(T)","Internal Category Number"
"Wolverhampton City Council","http://opendatacommunities.org/id/metropolitan-district-council/wolverhampton","710928","Yoo Recruit LTD","07804","465.46","Agency Staff","130184451","16/08/2017","School Planning & Resources","Special - Transport","R1100"
"Wolverhampton City Council","http://opendatacommunities.org/id/metropolitan-district-council/wolverhampton","710928","Yoo Recruit LTD","07799","2,437.29","Agency Staff","130184447","16/08/2017","Democratic Services","Register Office","R1100"
"Wolverhampton City Council","http://opendatacommunities.org/id/metropolitan-district-council/wolverhampton","710928","Yoo Recruit LTD","07793","422.17","Agency Staff","130184443","16/08/2017","Environmental Maintenance","Ground Maintenance East","R1100"
"Wolverhampton City Council","http://opendatacommunities.org/id/metropolitan-district-council/wolverhampton","710928","Yoo Recruit LTD","L2936","1,451.46","Agency Staff","130184757","16/08/2017","Looked After Children","Looked After Team 1","R1100"
"Wolverhampton City Council","http://opendatacommunities.org/id/metropolitan-district-council/wolverhampton","710928","Yoo Recruit LTD","I0736","9,200.00","Agency Staff","130184746","16/08/2017","Safeguarding","Safeguarding Board - Childrens","R1100"
"Wolverhampton City Council","http://opendatacommunities.org/id/metropolitan-district-council/wolverhampton","710928","Yoo Recruit LTD","07848","190.84","Agency Staff","130184490","16/08/2017","Revenues & Benefits","Debt Management","R1100"
"Wolverhampton City Council","http://opendatacommunities.org/id/metropolitan-district-council/wolverhampton","710928","Yoo Recruit LTD","CAP1035","516.13","Agency Staff","130183124","16/08/2017","Adults Assessment & Care Management North","Assessment Team (North)","R1100"
"Wolverhampton City Council","http://opendatacommunities.org/id/metropolitan-district-council/wolverhampton","710928","Yoo Recruit LTD","I0734","3,450.00","Agency Staff","130184744","16/08/2017","Corporate Business Support","Corporate Programmes","R1100"
"Wolverhampton City Council","http://opendatacommunities.org/id/metropolitan-district-council/wolverhampton","710928","Yoo Recruit LTD","07797","377.40","Agency Staff","130184445","16/08/2017","Looked After Children","Adoption and Residence Team & Allowances","R1100"
"Wolverhampton City Council","http://opendatacommunities.org/id/metropolitan-district-council/wolverhampton","710928","Yoo Recruit LTD","07839","173.29","Agency Staff","130184481","16/08/2017","Parking Services","Shopmobility","R1100"
"Wolverhampton City Council","http://opendatacommunities.org/id/metropolitan-district-council/wolverhampton","710928","Yoo Recruit LTD","07843","257.14","Agency Staff","130184485","16/08/2017","Parking Services","Shopmobility","R1100"
"Wolverhampton City Council","http://opendatacommunities.org/id/metropolitan-district-council/wolverhampton","710928","Yoo Recruit LTD","07882","490.63","Agency Staff","130184522","16/08/2017","Safeguarding","Safeguarding & Quality Administration","R1100"
"Wolverhampton City Council","http://opendatacommunities.org/id/metropolitan-district-council/wolverhampton","710958","BT Redcare","20025210","8,643.66","Equipment - Hire","130182479","02/08/2017","Operation & Maintenance of Existing Network","UTC Wolverhampton","R4001"
"Wolverhampton City Council","http://opendatacommunities.org/id/metropolitan-district-council/wolverhampton","710958","BT Redcare","20025211","9,654.93","Equipment - Hire","130182480","02/08/2017","Operation & Maintenance of Existing Network","UTC Wolverhampton","R4001"
"Wolverhampton City Council","http://opendatacommunities.org/id/metropolitan-district-council/wolverhampton","710958","BT Redcare","20025209","56,701.69","Equipment - Hire","130182478","02/08/2017","Operation & Maintenance of Existing Network","UTC Wolverhampton","R4001"
"Wolverhampton City Council","http://opendatacommunities.org/id/metropolitan-district-council/wolverhampton","710958","BT Redcare","20025208","2,980.00","Equipment - Hire","130182477","02/08/2017","Operation & Maintenance of Existing Network","UTC Wolverhampton","R4001"
"Wolverhampton City Council","http://opendatacommunities.org/id/metropolitan-district-council/wolverhampton","710983","Disclosure Scotland","2123692","350.00","CRB Police Checks","130184767","30/08/2017","The Hub","Criminal Convictions Checking","R1601"
"Wolverhampton City Council","http://opendatacommunities.org/id/metropolitan-district-council/wolverhampton","710983","Disclosure Scotland","2111239","150.00","CRB Police Checks","130180086","09/08/2017","The Hub","Criminal Convictions Checking","R1601"
"Wolverhampton City Council","http://opendatacommunities.org/id/metropolitan-district-council/wolverhampton","710994","Bemrosebooth Paragon","437759","15.00","Stationery","130181971","09/08/2017","Parking Services","Car Parks Operational Staff","R4308"
"Wolverhampton City Council","http://opendatacommunities.org/id/metropolitan-district-council/wolverhampton","710994","Bemrosebooth Paragon","437759","7.00","Comms - Postage","130181971","09/08/2017","Parking Services","Car Parks Operational Staff","R4503"
"Wolverhampton City Council","http://opendatacommunities.org/id/metropolitan-district-council/wolverhampton","711005","Gwynedd Env Waste Services LTD T/A Gews","32766","10,262.40","TPP - Street Cleansing","130183506","25/08/2017","Highways Maintenance","Gully Sweeping","R5026"
"Wolverhampton City Council","http://opendatacommunities.org/id/metropolitan-district-council/wolverhampton","711010","Network Ventures Ltd","076V168100","1,725.00","Services - Consultants","130183354","23/08/2017","ICTS","Strategic ICTS (ICT Service Budget)","R4404"
"Wolverhampton City Council","http://opendatacommunities.org/id/metropolitan-district-council/wolverhampton","711010","Network Ventures Ltd","076V167214","2,500.00","Agency Staff","130169634","02/08/2017","Corporate Business Support","Corporate Programmes","R1100"
"Wolverhampton City Council","http://opendatacommunities.org/id/metropolitan-district-council/wolverhampton","711010","Network Ventures Ltd","076V167214","-2,500.00","Agency Staff","130169634","02/08/2017","Corporate Business Support","Corporate Programmes","R1100"
"Wolverhampton City Council","http://opendatacommunities.org/id/metropolitan-district-council/wolverhampton","711010","Network Ventures Ltd","076V167214","2,000.00","Agency Staff","130169634","02/08/2017","Corporate Business Support","Corporate Programmes","R1100"
"Wolverhampton City Council","http://opendatacommunities.org/id/metropolitan-district-council/wolverhampton","711010","Network Ventures Ltd","076V168176","2,500.00","Agency Staff","130184768","30/08/2017","Corporate Business Support","Corporate Programmes","R1100"
"Wolverhampton City Council","http://opendatacommunities.org/id/metropolitan-district-council/wolverhampton","711010","Network Ventures Ltd","076V168009","2,500.00","Agency Staff","130181451","09/08/2017","Corporate Business Support","Corporate Programmes","R1100"
"Wolverhampton City Council","http://opendatacommunities.org/id/metropolitan-district-council/wolverhampton","711010","Network Ventures Ltd","076V168047","1,725.00","Services - Consultants","130183352","16/08/2017","ICTS","Strategic ICTS (ICT Service Budget)","R4404"
"Wolverhampton City Council","http://opendatacommunities.org/id/metropolitan-district-council/wolverhampton","711010","Network Ventures Ltd","076v167089 credit","-2,250.00","Agency Staff","130185615","23/08/2017","Corporate Business Support","Corporate Programmes","R1100"
"Wolverhampton City Council","http://opendatacommunities.org/id/metropolitan-district-council/wolverhampton","711010","Network Ventures Ltd","076V168202","2,250.00","Agency Staff","130184769","30/08/2017","Corporate Business Support","Corporate Programmes","R1100"
"Wolverhampton City Council","http://opendatacommunities.org/id/metropolitan-district-council/wolverhampton","711010","Network Ventures Ltd","076V167529","2,500.00","Agency Staff","130173701","02/08/2017","Corporate Business Support","Corporate Programmes","R1100"
"Wolverhampton City Council","http://opendatacommunities.org/id/metropolitan-district-council/wolverhampton","711010","Network Ventures Ltd","076v166945 credit","-2,250.00","Agency Staff","130185614","23/08/2017","Corporate Business Support","Corporate Programmes","R1100"
"Wolverhampton City Council","http://opendatacommunities.org/id/metropolitan-district-council/wolverhampton","711010","Network Ventures Ltd","076V168139","4,500.00","Agency Staff","130183356","23/08/2017","Corporate Business Support","Corporate Programmes","R1100"
"Wolverhampton City Council","http://opendatacommunities.org/id/metropolitan-district-council/wolverhampton","711010","Network Ventures Ltd","076V168086","4,500.00","Agency Staff","130183353","16/08/2017","Corporate Business Support","Corporate Programmes","R1100"
"Wolverhampton City Council","http://opendatacommunities.org/id/metropolitan-district-council/wolverhampton","711010","Network Ventures Ltd","076V167995","1,725.00","Services - Consultants","130183351","09/08/2017","ICTS","Strategic ICTS (ICT Service Budget)","R4404"
"Wolverhampton City Council","http://opendatacommunities.org/id/metropolitan-district-council/wolverhampton","711010","Network Ventures Ltd","076V168114","2,500.00","Agency Staff","130183355","23/08/2017","Corporate Business Support","Corporate Programmes","R1100"
"Wolverhampton City Council","http://opendatacommunities.org/id/metropolitan-district-council/wolverhampton","711010","Network Ventures Ltd","076v167016 credit","-2,250.00","Agency Staff","130185613","23/08/2017","Corporate Business Support","Corporate Programmes","R1100"
"Wolverhampton City Council","http://opendatacommunities.org/id/metropolitan-district-council/wolverhampton","711010","Network Ventures Ltd","076V168061","2,500.00","Agency Staff","130182613","16/08/2017","Corporate Business Support","Corporate Programmes","R1100"
"Wolverhampton City Council","http://opendatacommunities.org/id/metropolitan-district-council/wolverhampton","711010","Network Ventures Ltd","076V167941","1,725.00","Services - Consultants","130183350","09/08/2017","ICTS","Strategic ICTS (ICT Service Budget)","R4404"
"Wolverhampton City Council","http://opendatacommunities.org/id/metropolitan-district-council/wolverhampton","711010","Network Ventures Ltd","076V167399","2,500.00","Agency Staff","130171525","02/08/2017","Corporate Business Support","Corporate Programmes","R1100"
"Wolverhampton City Council","http://opendatacommunities.org/id/metropolitan-district-council/wolverhampton","711010","Network Ventures Ltd","076V167399","-2,500.00","Agency Staff","130171525","02/08/2017","Corporate Business Support","Corporate Programmes","R1100"
"Wolverhampton City Council","http://opendatacommunities.org/id/metropolitan-district-council/wolverhampton","711010","Network Ventures Ltd","076V167399","2,000.00","Agency Staff","130171525","02/08/2017","Corporate Business Support","Corporate Programmes","R1100"
"Wolverhampton City Council","http://opendatacommunities.org/id/metropolitan-district-council/wolverhampton","711015","The OT Practice","INV - 008917","5,173.65","TPP - Social Care Support Services","130185313","23/08/2017","Safeguarding","MCA General","R5501"
"Wolverhampton City Council","http://opendatacommunities.org/id/metropolitan-district-council/wolverhampton","711055","Traffic Enforcement CCC Business Centre","City of Wolverhampton Council ~ Aug 2017","30,000.00","Services - Fees and Charges","190363035","04/08/2017","Parking Services","Parking Enforcement","R4401"
"Wolverhampton City Council","http://opendatacommunities.org/id/metropolitan-district-council/wolverhampton","711076","Turbex Ltd","32626","460.40","Equipment - R & M","130179934","02/08/2017","Independent Living Service","Independent Living Service","R4003"
"Wolverhampton City Council","http://opendatacommunities.org/id/metropolitan-district-council/wolverhampton","711094","OTS","0000019776","670.00","Equipment - Purchase","130179935","02/08/2017","Independent Living Service","Independent Living Service","R4000"
"Wolverhampton City Council","http://opendatacommunities.org/id/metropolitan-district-council/wolverhampton","711094","OTS","0000019776","1,499.60","Equipment - Purchase","130179935","02/08/2017","Independent Living Service","Independent Living Service","R4000"
"Wolverhampton City Council","http://opendatacommunities.org/id/metropolitan-district-council/wolverhampton","711100","TMI Systems Limited","170608","33,000.00","Computing - Maint Agreements","130182481","02/08/2017","ICTS","Strategic ICTS (ICT Service Budget)","R4534"
"Wolverhampton City Council","http://opendatacommunities.org/id/metropolitan-district-council/wolverhampton","711135","Hindley Contractors LTD","16/0272/DFG","4,090.00","Grants paid out","190367182","23/08/2017","-","Disabled Facilities Grants","C5000"
"Wolverhampton City Council","http://opendatacommunities.org/id/metropolitan-district-council/wolverhampton","711148","Tarmac Trading Limited","9036405498","311.70","Materials","130177777","02/08/2017","Highways Maintenance","Planned Highways Maintenance","R4007"
"Wolverhampton City Council","http://opendatacommunities.org/id/metropolitan-district-council/wolverhampton","711148","Tarmac Trading Limited","9036625170","207.80","Materials","130183507","23/08/2017","Highways Maintenance","Planned Highways Maintenance","R4007"
"Wolverhampton City Council","http://opendatacommunities.org/id/metropolitan-district-council/wolverhampton","711148","Tarmac Trading Limited","9036502538","311.70","Materials","130181102","04/08/2017","Highways Maintenance","Planned Highways Maintenance","R4007"
"Wolverhampton City Council","http://opendatacommunities.org/id/metropolitan-district-council/wolverhampton","711148","Tarmac Trading Limited","9036533378","51.95","Materials","130181972","23/08/2017","Highways Maintenance","Planned Highways Maintenance","R4007"
"Wolverhampton City Council","http://opendatacommunities.org/id/metropolitan-district-council/wolverhampton","711148","Tarmac Trading Limited","9036625171","498.72","Materials","130183508","25/08/2017","Highways Maintenance","Planned Highways Maintenance","R4007"
"Wolverhampton City Council","http://opendatacommunities.org/id/metropolitan-district-council/wolverhampton","711202","Express and Star Limited","ARINV/00000299","1,915.00","Marketing \ Non-staff advertising","130184962","25/08/2017","Director of Governance","Merchandising for Wolves-in-Wolves","R4317"
"Wolverhampton City Council","http://opendatacommunities.org/id/metropolitan-district-council/wolverhampton","711209","SJC Castle Ltd","FINEWS 039","58.20","Books","130180087","02/08/2017","Strategic Organisation Development","Finchfield Library","R4309"
"Wolverhampton City Council","http://opendatacommunities.org/id/metropolitan-district-council/wolverhampton","711209","SJC Castle Ltd","FINEWS 040","83.25","Books","130184963","23/08/2017","Strategic Organisation Development","Finchfield Library","R4309"
"Wolverhampton City Council","http://opendatacommunities.org/id/metropolitan-district-council/wolverhampton","711291","Resources for Autism","P15173120170825","323.75","TPP - Short Breaks","190368356","30/08/2017","Child Protection","Childrens with Disabilities Team","R5500"
"Wolverhampton City Council","http://opendatacommunities.org/id/metropolitan-district-council/wolverhampton","711291","Resources for Autism","P15173120170825","323.75","TPP - Short Breaks","190368356","30/08/2017","Child Protection","Childrens with Disabilities Team","R5500"
"Wolverhampton City Council","http://opendatacommunities.org/id/metropolitan-district-council/wolverhampton","711291","Resources for Autism","P15173120170825","323.75","TPP - Short Breaks","190368356","30/08/2017","Child Protection","Childrens with Disabilities Team","R5500"
"Wolverhampton City Council","http://opendatacommunities.org/id/metropolitan-district-council/wolverhampton","711297","HARRISON PROPERTY ASSOCIATES (UK) LTD","082014/300","930.00","Accommodation Costs","130183769","18/08/2017","Child Protection","CIN/CP Social Work Unit - Area 5","R4900"
"Wolverhampton City Council","http://opendatacommunities.org/id/metropolitan-district-council/wolverhampton","711352","FIRMSTEP","3184","128.70","TPP - Free school meals","130183509","16/08/2017","School Planning & Resources","Pupil & Student Support","R5031"
"Wolverhampton City Council","http://opendatacommunities.org/id/metropolitan-district-council/wolverhampton","711352","FIRMSTEP","1624","142.20","TPP - Free school meals","130184773","16/08/2017","School Planning & Resources","Pupil & Student Support","R5031"
"Wolverhampton City Council","http://opendatacommunities.org/id/metropolitan-district-council/wolverhampton","711352","FIRMSTEP","1797","486.90","TPP - Free school meals","130184774","18/08/2017","School Planning & Resources","Pupil & Student Support","R5031"
"Wolverhampton City Council","http://opendatacommunities.org/id/metropolitan-district-council/wolverhampton","711352","FIRMSTEP","2543","555.30","TPP - Free school meals","130184775","18/08/2017","School Planning & Resources","Pupil & Student Support","R5031"
"Wolverhampton City Council","http://opendatacommunities.org/id/metropolitan-district-council/wolverhampton","711379","Senplus Ltd","0040","2,000.00","Services - Professional Fees","130186115","25/08/2017","Standards and Vulnerable Pupils","SEN Education OOC","R4400"
"Wolverhampton City Council","http://opendatacommunities.org/id/metropolitan-district-council/wolverhampton","711387","GTG Training Limited","535888","27.75","Hospitality","130183770","11/08/2017","Standards and Vulnerable Pupils","School Standards Training & Safeguarding","R4612"
"Wolverhampton City Council","http://opendatacommunities.org/id/metropolitan-district-council/wolverhampton","711387","GTG Training Limited","536575","132.20","Hospitality","130183773","16/08/2017","Standards and Vulnerable Pupils","School Improvement","R4612"
"Wolverhampton City Council","http://opendatacommunities.org/id/metropolitan-district-council/wolverhampton","711387","GTG Training Limited","536305","135.90","Hospitality","130181119","04/08/2017","Standards and Vulnerable Pupils","LEP-Leadership & Management Programme","R4612"
"Wolverhampton City Council","http://opendatacommunities.org/id/metropolitan-district-council/wolverhampton","711387","GTG Training Limited","536181","138.75","Hospitality","130181113","02/08/2017","Standards and Vulnerable Pupils","LEP-Leadership & Management Programme","R4612"
"Wolverhampton City Council","http://opendatacommunities.org/id/metropolitan-district-council/wolverhampton","711387","GTG Training Limited","536183","110.00","Hospitality","130181115","02/08/2017","Standards and Vulnerable Pupils","LEP-Leadership & Management Programme","R4612"
"Wolverhampton City Council","http://opendatacommunities.org/id/metropolitan-district-council/wolverhampton","711387","GTG Training Limited","535906","137.75","Hospitality","130186304","30/08/2017","Standards and Vulnerable Pupils","LEP-Leadership & Management Programme","R4612"
"Wolverhampton City Council","http://opendatacommunities.org/id/metropolitan-district-council/wolverhampton","711387","GTG Training Limited","535968","165.50","Hospitality","130186306","30/08/2017","Standards and Vulnerable Pupils","LEP-Leadership & Management Programme","R4612"
"Wolverhampton City Council","http://opendatacommunities.org/id/metropolitan-district-council/wolverhampton","711387","GTG Training Limited","536032","24.05","Hospitality","130183771","11/08/2017","Standards and Vulnerable Pupils","School Standards Training & Safeguarding","R4612"
"Wolverhampton City Council","http://opendatacommunities.org/id/metropolitan-district-council/wolverhampton","711387","GTG Training Limited","536214","330.00","Hospitality","130181118","02/08/2017","Standards and Vulnerable Pupils","School Improvement","R4612"
"Wolverhampton City Council","http://opendatacommunities.org/id/metropolitan-district-council/wolverhampton","711387","GTG Training Limited","536184","110.00","Hospitality","130181116","02/08/2017","Standards and Vulnerable Pupils","LEP-Leadership & Management Programme","R4612"
"Wolverhampton City Council","http://opendatacommunities.org/id/metropolitan-district-council/wolverhampton","711387","GTG Training Limited","536033","119.25","Hospitality","130186307","30/08/2017","Standards and Vulnerable Pupils","LEP-Leadership & Management Programme","R4612"
"Wolverhampton City Council","http://opendatacommunities.org/id/metropolitan-district-council/wolverhampton","711387","GTG Training Limited","535907","1,216.50","Hospitality","130186305","30/08/2017","Standards and Vulnerable Pupils","LEP-Leadership & Management Programme","R4612"
"Wolverhampton City Council","http://opendatacommunities.org/id/metropolitan-district-council/wolverhampton","711387","GTG Training Limited","536182","375.00","Hospitality","130181114","02/08/2017","Standards and Vulnerable Pupils","LEP-Leadership & Management Programme","R4612"
"Wolverhampton City Council","http://opendatacommunities.org/id/metropolitan-district-council/wolverhampton","711387","GTG Training Limited","536213","148.00","Hospitality","130181117","02/08/2017","Standards and Vulnerable Pupils","School Improvement","R4612"
"Wolverhampton City Council","http://opendatacommunities.org/id/metropolitan-district-council/wolverhampton","711387","GTG Training Limited","536322","165.50","Hospitality","130181120","04/08/2017","Standards and Vulnerable Pupils","New Arrivals","R4612"
"Wolverhampton City Council","http://opendatacommunities.org/id/metropolitan-district-council/wolverhampton","711387","GTG Training Limited","536574","132.20","Hospitality","130183772","16/08/2017","Standards and Vulnerable Pupils","School Improvement","R4612"
"Wolverhampton City Council","http://opendatacommunities.org/id/metropolitan-district-council/wolverhampton","711387","GTG Training Limited","536212","450.00","Training Expenses","130180088","02/08/2017","Audit Services","Health & Safety","R1650"
"Wolverhampton City Council","http://opendatacommunities.org/id/metropolitan-district-council/wolverhampton","711387","GTG Training Limited","535670","110.00","Hospitality","130182312","02/08/2017","Standards and Vulnerable Pupils","School Standards Training & Safeguarding","R4612"
"Wolverhampton City Council","http://opendatacommunities.org/id/metropolitan-district-council/wolverhampton","711387","GTG Training Limited","536034","128.50","Hospitality","130186308","30/08/2017","Standards and Vulnerable Pupils","LEP-Leadership & Management Programme","R4612"
"Wolverhampton City Council","http://opendatacommunities.org/id/metropolitan-district-council/wolverhampton","711456","AVR Group Ltd","77344","2,016.27","Computing - Purchase of Software","130183975","25/08/2017","Audit Services","Health & Safety","R4531"
"Wolverhampton City Council","http://opendatacommunities.org/id/metropolitan-district-council/wolverhampton","711553","Centro","FTI0009407","770.00","Construction and Conversion","130155459","04/08/2017","-","GF - Managing Short Trips","C1100"
"Wolverhampton City Council","http://opendatacommunities.org/id/metropolitan-district-council/wolverhampton","711553","Centro","650597","2,000.00","Construction and Conversion","130170037","04/08/2017","-","Integrated Transport","C1100"
"Wolverhampton City Council","http://opendatacommunities.org/id/metropolitan-district-council/wolverhampton","711611","Bluechilli Design and Print Ltd","Grant No. 019/17c","1,448.40","Grants paid out","190366664","23/08/2017","-","GF - Black Country Gold ERDF Project","C5000"
"Wolverhampton City Council","http://opendatacommunities.org/id/metropolitan-district-council/wolverhampton","711611","Bluechilli Design and Print Ltd","Grant No. 019/17r","599.70","Grant Payments","190366665","23/08/2017","Enterprise","Black Country Gold","R4700"
"Wolverhampton City Council","http://opendatacommunities.org/id/metropolitan-district-council/wolverhampton","711708","APSE","PN 1718/48","481.81","Subscriptions","130183511","11/08/2017","Waste and Recycling Service","Waste Collection and Recycling Service - General","R4701"
"Wolverhampton City Council","http://opendatacommunities.org/id/metropolitan-district-council/wolverhampton","711708","APSE","PN 1718/48","240.91","Subscriptions","130183511","11/08/2017","Bereavement Services","Cemeteries","R4701"
"Wolverhampton City Council","http://opendatacommunities.org/id/metropolitan-district-council/wolverhampton","711708","APSE","PN 1718/48","240.91","Subscriptions","130183511","11/08/2017","Fleet Services","Fleet Management","R4701"
"Wolverhampton City Council","http://opendatacommunities.org/id/metropolitan-district-council/wolverhampton","711708","APSE","PN 1718/48","120.45","Subscriptions","130183511","11/08/2017","Catering","Education Catering - General Overheads","R4701"
"Wolverhampton City Council","http://opendatacommunities.org/id/metropolitan-district-council/wolverhampton","711708","APSE","PN 1718/48","120.45","Subscriptions","130183511","11/08/2017","Cleaning","Schools Cleaning","R4701"
"Wolverhampton City Council","http://opendatacommunities.org/id/metropolitan-district-council/wolverhampton","711708","APSE","PN 1718/48","120.45","Subscriptions","130183511","11/08/2017","Environmental Maintenance","Ground Maintenance Overheads","R4701"
"Wolverhampton City Council","http://opendatacommunities.org/id/metropolitan-district-council/wolverhampton","711708","APSE","PN 1718/48","120.45","Subscriptions","130183511","11/08/2017","Environmental Maintenance","Street Cleansing Overheads","R4701"
"Wolverhampton City Council","http://opendatacommunities.org/id/metropolitan-district-council/wolverhampton","711708","APSE","PN 1718/48","240.91","Subscriptions","130183511","11/08/2017","Street Lighting","Street Lighting Maintenance","R4701"
"Wolverhampton City Council","http://opendatacommunities.org/id/metropolitan-district-council/wolverhampton","711708","APSE","PN 1718/48","240.91","Subscriptions","130183511","11/08/2017","Highways Maintenance","Patching","R4701"
"Wolverhampton City Council","http://opendatacommunities.org/id/metropolitan-district-council/wolverhampton","711708","APSE","1718/225","904.50","Subscriptions","130182482","02/08/2017","Waste and Recycling Service","Waste Collection and Recycling Service - General","R4701"
"Wolverhampton City Council","http://opendatacommunities.org/id/metropolitan-district-council/wolverhampton","711708","APSE","1718/225","452.25","Subscriptions","130182482","02/08/2017","Bereavement Services","Cemeteries","R4701"
"Wolverhampton City Council","http://opendatacommunities.org/id/metropolitan-district-council/wolverhampton","711708","APSE","1718/225","452.25","Subscriptions","130182482","02/08/2017","Fleet Services","Fleet Management","R4701"
"Wolverhampton City Council","http://opendatacommunities.org/id/metropolitan-district-council/wolverhampton","711708","APSE","1718/225","226.13","Subscriptions","130182482","02/08/2017","Catering","Education Catering - General Overheads","R4701"
"Wolverhampton City Council","http://opendatacommunities.org/id/metropolitan-district-council/wolverhampton","711708","APSE","1718/225","226.13","Subscriptions","130182482","02/08/2017","Cleaning","Schools Cleaning","R4701"
"Wolverhampton City Council","http://opendatacommunities.org/id/metropolitan-district-council/wolverhampton","711708","APSE","1718/225","226.13","Subscriptions","130182482","02/08/2017","Environmental Maintenance","Ground Maintenance Overheads","R4701"
"Wolverhampton City Council","http://opendatacommunities.org/id/metropolitan-district-council/wolverhampton","711708","APSE","1718/225","226.13","Subscriptions","130182482","02/08/2017","Environmental Maintenance","Street Cleansing Overheads","R4701"
"Wolverhampton City Council","http://opendatacommunities.org/id/metropolitan-district-council/wolverhampton","711708","APSE","1718/225","452.25","Subscriptions","130182482","02/08/2017","Street Lighting","Street Lighting Maintenance","R4701"
"Wolverhampton City Council","http://opendatacommunities.org/id/metropolitan-district-council/wolverhampton","711708","APSE","1718/225","452.25","Subscriptions","130182482","02/08/2017","Highways Maintenance","Patching","R4701"
"Wolverhampton City Council","http://opendatacommunities.org/id/metropolitan-district-council/wolverhampton","711714","Bilston Magazine","2281","300.00","Marketing \ Non-staff advertising","130184524","23/08/2017","Markets","Bilston Market and Licensed Operations","R4317"
"Wolverhampton City Council","http://opendatacommunities.org/id/metropolitan-district-council/wolverhampton","711767","Nottingham University Hospitals NHS Trust","1000101935 M2 Gum 17/18","226.23","TPP - Public Health Contracts","190364302","11/08/2017","Contracts","Sexual Health","R5060"
"Wolverhampton City Council","http://opendatacommunities.org/id/metropolitan-district-council/wolverhampton","711767","Nottingham University Hospitals NHS Trust","1000009052 M2 GUM Credit Note","-24.55","TPP - Public Health Contracts","190364305","11/08/2017","Contracts","Sexual Health","R5060"
"Wolverhampton City Council","http://opendatacommunities.org/id/metropolitan-district-council/wolverhampton","711772","Old Hall School","OHS - 42","6,410.03","TPP - Independent Schools","130181125","02/08/2017","Standards and Vulnerable Pupils","SEN Education OOC","R5036"
"Wolverhampton City Council","http://opendatacommunities.org/id/metropolitan-district-council/wolverhampton","711772","Old Hall School","OHS - 39","6,410.03","TPP - Independent Schools","130181122","02/08/2017","Standards and Vulnerable Pupils","SEN Education OOC","R5036"
"Wolverhampton City Council","http://opendatacommunities.org/id/metropolitan-district-council/wolverhampton","711772","Old Hall School","OHS - 41","6,410.03","TPP - Independent Schools","130181124","02/08/2017","Standards and Vulnerable Pupils","SEN Education OOC","R5036"
"Wolverhampton City Council","http://opendatacommunities.org/id/metropolitan-district-council/wolverhampton","711784","Guardian News and Media Ltd","1100969","600.00","Staff Advertising Costs","130184525","30/08/2017","Corporate Communications","Insight and Performance","R1700"
"Wolverhampton City Council","http://opendatacommunities.org/id/metropolitan-district-council/wolverhampton","711785","Progress Adult Living Services","P14987120170804","263.63","TPP - Short Breaks","190363624","09/08/2017","Child Protection","Childrens with Disabilities Team","R5500"
"Wolverhampton City Council","http://opendatacommunities.org/id/metropolitan-district-council/wolverhampton","711785","Progress Adult Living Services","P14987120170804","193.65","TPP - Short Breaks","190363624","09/08/2017","Child Protection","Childrens with Disabilities Team","R5500"
"Wolverhampton City Council","http://opendatacommunities.org/id/metropolitan-district-council/wolverhampton","711785","Progress Adult Living Services","P14987120170804","105.00","TPP - Short Breaks","190363624","09/08/2017","Child Protection","Childrens with Disabilities Team","R5500"
"Wolverhampton City Council","http://opendatacommunities.org/id/metropolitan-district-council/wolverhampton","711785","Progress Adult Living Services","P14987120170804","208.13","TPP - Short Breaks","190363624","09/08/2017","Child Protection","Childrens with Disabilities Team","R5500"
"Wolverhampton City Council","http://opendatacommunities.org/id/metropolitan-district-council/wolverhampton","711785","Progress Adult Living Services","P14987120170804","270.00","TPP - Short Breaks","190363624","09/08/2017","Child Protection","Childrens with Disabilities Team","R5500"
"Wolverhampton City Council","http://opendatacommunities.org/id/metropolitan-district-council/wolverhampton","711785","Progress Adult Living Services","P14987120170804","49.50","TPP - Short Breaks","190363624","09/08/2017","Child Protection","Childrens with Disabilities Team","R5500"
"Wolverhampton City Council","http://opendatacommunities.org/id/metropolitan-district-council/wolverhampton","711785","Progress Adult Living Services","P14987120170804","99.00","TPP - Short Breaks","190363624","09/08/2017","Child Protection","Childrens with Disabilities Team","R5500"
"Wolverhampton City Council","http://opendatacommunities.org/id/metropolitan-district-council/wolverhampton","711785","Progress Adult Living Services","P14987120170804","99.00","TPP - Short Breaks","190363624","09/08/2017","Child Protection","Childrens with Disabilities Team","R5500"
"Wolverhampton City Council","http://opendatacommunities.org/id/metropolitan-district-council/wolverhampton","711785","Progress Adult Living Services","P14987120170804","325.90","TPP - Short Breaks","190363624","09/08/2017","Child Protection","Childrens with Disabilities Team","R5500"
"Wolverhampton City Council","http://opendatacommunities.org/id/metropolitan-district-council/wolverhampton","711785","Progress Adult Living Services","P14987120170804","119.63","TPP - Short Breaks","190363624","09/08/2017","Child Protection","Childrens with Disabilities Team","R5500"
"Wolverhampton City Council","http://opendatacommunities.org/id/metropolitan-district-council/wolverhampton","711785","Progress Adult Living Services","P14987120170804","119.63","TPP - Short Breaks","190363624","09/08/2017","Child Protection","Childrens with Disabilities Team","R5500"
"Wolverhampton City Council","http://opendatacommunities.org/id/metropolitan-district-council/wolverhampton","711785","Progress Adult Living Services","P14987120170804","325.90","TPP - Short Breaks","190363624","09/08/2017","Child Protection","Childrens with Disabilities Team","R5500"
"Wolverhampton City Council","http://opendatacommunities.org/id/metropolitan-district-council/wolverhampton","711785","Progress Adult Living Services","P14987120170804","445.50","TPP - Short Breaks","190363624","09/08/2017","Child Protection","Childrens with Disabilities Team","R5500"
"Wolverhampton City Council","http://opendatacommunities.org/id/metropolitan-district-council/wolverhampton","711785","Progress Adult Living Services","P14987120170804","610.50","TPP - Short Breaks","190363624","09/08/2017","Child Protection","Childrens with Disabilities Team","R5500"
"Wolverhampton City Council","http://opendatacommunities.org/id/metropolitan-district-council/wolverhampton","711785","Progress Adult Living Services","P14987120170804","201.00","TPP - Short Breaks","190363624","09/08/2017","Child Protection","Childrens with Disabilities Team","R5500"
"Wolverhampton City Council","http://opendatacommunities.org/id/metropolitan-district-council/wolverhampton","711785","Progress Adult Living Services","P14987120170804","132.00","TPP - Short Breaks","190363624","09/08/2017","Child Protection","Childrens with Disabilities Team","R5500"
"Wolverhampton City Council","http://opendatacommunities.org/id/metropolitan-district-council/wolverhampton","711785","Progress Adult Living Services","P14987120170804","99.00","TPP - Short Breaks","190363624","09/08/2017","Child Protection","Childrens with Disabilities Team","R5500"
"Wolverhampton City Council","http://opendatacommunities.org/id/metropolitan-district-council/wolverhampton","711785","Progress Adult Living Services","P14987120170804","990.00","TPP - Short Breaks","190363624","09/08/2017","Child Protection","Childrens with Disabilities Team","R5500"
"Wolverhampton City Council","http://opendatacommunities.org/id/metropolitan-district-council/wolverhampton","711785","Progress Adult Living Services","P14987120170804","361.64","TPP - Short Breaks","190363624","09/08/2017","Child Protection","Childrens with Disabilities Team","R5500"
"Wolverhampton City Council","http://opendatacommunities.org/id/metropolitan-district-council/wolverhampton","711785","Progress Adult Living Services","P14987120170804","396.00","TPP - Short Breaks","190363624","09/08/2017","Child Protection","Childrens with Disabilities Team","R5500"
"Wolverhampton City Council","http://opendatacommunities.org/id/metropolitan-district-council/wolverhampton","711785","Progress Adult Living Services","P14987120170804","264.00","TPP - Short Breaks","190363624","09/08/2017","Child Protection","Childrens with Disabilities Team","R5500"
"Wolverhampton City Council","http://opendatacommunities.org/id/metropolitan-district-council/wolverhampton","711785","Progress Adult Living Services","P14987120170804","1,089.00","TPP - Short Breaks","190363624","09/08/2017","Child Protection","Childrens with Disabilities Team","R5500"
"Wolverhampton City Council","http://opendatacommunities.org/id/metropolitan-district-council/wolverhampton","711785","Progress Adult Living Services","P14987120170804","396.00","TPP - Short Breaks","190363624","09/08/2017","Child Protection","Childrens with Disabilities Team","R5500"
"Wolverhampton City Council","http://opendatacommunities.org/id/metropolitan-district-council/wolverhampton","711785","Progress Adult Living Services","P14987120170804","750.75","TPP - Short Breaks","190363624","09/08/2017","Child Protection","Childrens with Disabilities Team","R5500"
"Wolverhampton City Council","http://opendatacommunities.org/id/metropolitan-district-council/wolverhampton","711785","Progress Adult Living Services","P14987120170804","624.25","TPP - Short Breaks","190363624","09/08/2017","Child Protection","Childrens with Disabilities Team","R5500"
"Wolverhampton City Council","http://opendatacommunities.org/id/metropolitan-district-council/wolverhampton","711785","Progress Adult Living Services","P14987120170804","808.50","TPP - Short Breaks","190363624","09/08/2017","Child Protection","Childrens with Disabilities Team","R5500"
"Wolverhampton City Council","http://opendatacommunities.org/id/metropolitan-district-council/wolverhampton","711785","Progress Adult Living Services","P14987120170804","99.00","TPP - Short Breaks","190363624","09/08/2017","Child Protection","Childrens with Disabilities Team","R5500"
"Wolverhampton City Council","http://opendatacommunities.org/id/metropolitan-district-council/wolverhampton","711785","Progress Adult Living Services","P14987120170804","206.25","TPP - Short Breaks","190363624","09/08/2017","Child Protection","Childrens with Disabilities Team","R5500"
"Wolverhampton City Council","http://opendatacommunities.org/id/metropolitan-district-council/wolverhampton","711785","Progress Adult Living Services","P14987120170804","313.51","TPP - Short Breaks","190363624","09/08/2017","Child Protection","Childrens with Disabilities Team","R5500"
"Wolverhampton City Council","http://opendatacommunities.org/id/metropolitan-district-council/wolverhampton","711785","Progress Adult Living Services","P14987120170804","198.00","TPP - Short Breaks","190363624","09/08/2017","Child Protection","Childrens with Disabilities Team","R5500"
"Wolverhampton City Council","http://opendatacommunities.org/id/metropolitan-district-council/wolverhampton","711785","Progress Adult Living Services","252420170824","522.00","TPP - Home Care","190368093","25/08/2017","Learning Disabilities Care Purchasing","LD Care Purchasing (Spot Placements)","R5420"
"Wolverhampton City Council","http://opendatacommunities.org/id/metropolitan-district-council/wolverhampton","711785","Progress Adult Living Services","252420170824","870.00","TPP - Home Care","190368093","25/08/2017","Learning Disabilities Care Purchasing","LD Care Purchasing (Spot Placements)","R5420"
"Wolverhampton City Council","http://opendatacommunities.org/id/metropolitan-district-council/wolverhampton","711785","Progress Adult Living Services","P15022420170811","264.00","TPP - Short Breaks","190364659","16/08/2017","Child Protection","Childrens with Disabilities Team","R5500"
"Wolverhampton City Council","http://opendatacommunities.org/id/metropolitan-district-council/wolverhampton","711785","Progress Adult Living Services","P15022420170811","231.00","TPP - Short Breaks","190364659","16/08/2017","Child Protection","Childrens with Disabilities Team","R5500"
"Wolverhampton City Council","http://opendatacommunities.org/id/metropolitan-district-council/wolverhampton","711785","Progress Adult Living Services","P15022420170811","544.50","TPP - Short Breaks","190364659","16/08/2017","Child Protection","Childrens with Disabilities Team","R5500"
"Wolverhampton City Council","http://opendatacommunities.org/id/metropolitan-district-council/wolverhampton","711785","Progress Adult Living Services","P15022420170811","1,105.50","TPP - Short Breaks","190364659","16/08/2017","Child Protection","Childrens with Disabilities Team","R5500"
"Wolverhampton City Council","http://opendatacommunities.org/id/metropolitan-district-council/wolverhampton","711785","Progress Adult Living Services","P15022420170811","396.00","TPP - Short Breaks","190364659","16/08/2017","Child Protection","Childrens with Disabilities Team","R5500"
"Wolverhampton City Council","http://opendatacommunities.org/id/metropolitan-district-council/wolverhampton","711785","Progress Adult Living Services","P15022420170811","2,252.25","TPP - Short Breaks","190364659","16/08/2017","Child Protection","Childrens with Disabilities Team","R5500"
"Wolverhampton City Council","http://opendatacommunities.org/id/metropolitan-district-council/wolverhampton","711785","Progress Adult Living Services","P15022420170811","1,740.75","TPP - Short Breaks","190364659","16/08/2017","Child Protection","Childrens with Disabilities Team","R5500"
"Wolverhampton City Council","http://opendatacommunities.org/id/metropolitan-district-council/wolverhampton","711785","Progress Adult Living Services","P15022420170811","330.00","TPP - Short Breaks","190364659","16/08/2017","Child Protection","Childrens with Disabilities Team","R5500"
"Wolverhampton City Council","http://opendatacommunities.org/id/metropolitan-district-council/wolverhampton","711785","Progress Adult Living Services","P15022420170811","346.50","TPP - Short Breaks","190364659","16/08/2017","Child Protection","Childrens with Disabilities Team","R5500"
"Wolverhampton City Council","http://opendatacommunities.org/id/metropolitan-district-council/wolverhampton","711785","Progress Adult Living Services","P15022420170811","115.50","TPP - Short Breaks","190364659","16/08/2017","Child Protection","Childrens with Disabilities Team","R5500"
"Wolverhampton City Council","http://opendatacommunities.org/id/metropolitan-district-council/wolverhampton","711785","Progress Adult Living Services","P15022420170811","99.00","TPP - Short Breaks","190364659","16/08/2017","Child Protection","Childrens with Disabilities Team","R5500"
"Wolverhampton City Council","http://opendatacommunities.org/id/metropolitan-district-council/wolverhampton","711785","Progress Adult Living Services","P15022420170811","99.00","TPP - Short Breaks","190364659","16/08/2017","Child Protection","Childrens with Disabilities Team","R5500"
"Wolverhampton City Council","http://opendatacommunities.org/id/metropolitan-district-council/wolverhampton","711785","Progress Adult Living Services","P15022420170811","66.00","TPP - Short Breaks","190364659","16/08/2017","Child Protection","Childrens with Disabilities Team","R5500"
"Wolverhampton City Council","http://opendatacommunities.org/id/metropolitan-district-council/wolverhampton","711785","Progress Adult Living Services","P15022420170811","132.00","TPP - Short Breaks","190364659","16/08/2017","Child Protection","Childrens with Disabilities Team","R5500"
"Wolverhampton City Council","http://opendatacommunities.org/id/metropolitan-district-council/wolverhampton","711785","Progress Adult Living Services","P15022420170811","462.00","TPP - Short Breaks","190364659","16/08/2017","Child Protection","Childrens with Disabilities Team","R5500"
"Wolverhampton City Council","http://opendatacommunities.org/id/metropolitan-district-council/wolverhampton","711785","Progress Adult Living Services","P15022420170811","138.00","TPP - Short Breaks","190364659","16/08/2017","Child Protection","Childrens with Disabilities Team","R5500"
"Wolverhampton City Council","http://opendatacommunities.org/id/metropolitan-district-council/wolverhampton","711785","Progress Adult Living Services","P15022420170811","198.00","TPP - Short Breaks","190364659","16/08/2017","Child Protection","Childrens with Disabilities Team","R5500"
"Wolverhampton City Council","http://opendatacommunities.org/id/metropolitan-district-council/wolverhampton","711785","Progress Adult Living Services","P15022420170811","198.00","TPP - Short Breaks","190364659","16/08/2017","Child Protection","Childrens with Disabilities Team","R5500"
"Wolverhampton City Council","http://opendatacommunities.org/id/metropolitan-district-council/wolverhampton","711785","Progress Adult Living Services","P15022420170811","264.00","TPP - Short Breaks","190364659","16/08/2017","Child Protection","Childrens with Disabilities Team","R5500"
"Wolverhampton City Council","http://opendatacommunities.org/id/metropolitan-district-council/wolverhampton","711785","Progress Adult Living Services","P15086420170821","87.00","TPP - Short Breaks","190366740","23/08/2017","Child Protection","Childrens with Disabilities Team","R5500"
"Wolverhampton City Council","http://opendatacommunities.org/id/metropolitan-district-council/wolverhampton","711785","Progress Adult Living Services","P15086420170821","280.50","TPP - Short Breaks","190366740","23/08/2017","Child Protection","Childrens with Disabilities Team","R5500"
"Wolverhampton City Council","http://opendatacommunities.org/id/metropolitan-district-council/wolverhampton","711785","Progress Adult Living Services","P15086420170821","181.50","TPP - Short Breaks","190366740","23/08/2017","Child Protection","Childrens with Disabilities Team","R5500"
"Wolverhampton City Council","http://opendatacommunities.org/id/metropolitan-district-council/wolverhampton","711785","Progress Adult Living Services","P15086420170821","140.25","TPP - Short Breaks","190366740","23/08/2017","Child Protection","Childrens with Disabilities Team","R5500"
"Wolverhampton City Council","http://opendatacommunities.org/id/metropolitan-district-council/wolverhampton","711785","Progress Adult Living Services","P15086420170821","346.50","TPP - Short Breaks","190366740","23/08/2017","Child Protection","Childrens with Disabilities Team","R5500"
"Wolverhampton City Council","http://opendatacommunities.org/id/metropolitan-district-council/wolverhampton","711785","Progress Adult Living Services","P15086420170821","198.00","TPP - Short Breaks","190366740","23/08/2017","Child Protection","Childrens with Disabilities Team","R5500"
"Wolverhampton City Council","http://opendatacommunities.org/id/metropolitan-district-council/wolverhampton","711785","Progress Adult Living Services","P15086420170821","198.00","TPP - Short Breaks","190366740","23/08/2017","Child Protection","Childrens with Disabilities Team","R5500"
"Wolverhampton City Council","http://opendatacommunities.org/id/metropolitan-district-council/wolverhampton","711785","Progress Adult Living Services","P15086420170821","174.00","TPP - Short Breaks","190366740","23/08/2017","Child Protection","Childrens with Disabilities Team","R5500"
"Wolverhampton City Council","http://opendatacommunities.org/id/metropolitan-district-council/wolverhampton","711785","Progress Adult Living Services","P15086420170821","198.00","TPP - Short Breaks","190366740","23/08/2017","Child Protection","Childrens with Disabilities Team","R5500"
"Wolverhampton City Council","http://opendatacommunities.org/id/metropolitan-district-council/wolverhampton","711785","Progress Adult Living Services","P15086420170821","90.75","TPP - Short Breaks","190366740","23/08/2017","Child Protection","Childrens with Disabilities Team","R5500"
"Wolverhampton City Council","http://opendatacommunities.org/id/metropolitan-district-council/wolverhampton","711785","Progress Adult Living Services","P15086420170821","165.00","TPP - Short Breaks","190366740","23/08/2017","Child Protection","Childrens with Disabilities Team","R5500"
"Wolverhampton City Council","http://opendatacommunities.org/id/metropolitan-district-council/wolverhampton","711785","Progress Adult Living Services","P15086420170821","402.00","TPP - Short Breaks","190366740","23/08/2017","Child Protection","Childrens with Disabilities Team","R5500"
"Wolverhampton City Council","http://opendatacommunities.org/id/metropolitan-district-council/wolverhampton","711785","Progress Adult Living Services","P15086420170821","273.00","TPP - Short Breaks","190366740","23/08/2017","Child Protection","Childrens with Disabilities Team","R5500"
"Wolverhampton City Council","http://opendatacommunities.org/id/metropolitan-district-council/wolverhampton","711785","Progress Adult Living Services","P14986520170804","198.00","TPP - Short Breaks","190363618","09/08/2017","Child Protection","Childrens with Disabilities Team","R5500"
"Wolverhampton City Council","http://opendatacommunities.org/id/metropolitan-district-council/wolverhampton","711798","Dr Cvijan","DRC/52616","553.00","Services - Professional Fees","190365530","18/08/2017","Democratic Services","Coroners Service","R4400"
"Wolverhampton City Council","http://opendatacommunities.org/id/metropolitan-district-council/wolverhampton","711798","Dr Cvijan","DRC/52169","470.50","Services - Professional Fees","190365249","16/08/2017","Democratic Services","Coroners Service","R4400"
"Wolverhampton City Council","http://opendatacommunities.org/id/metropolitan-district-council/wolverhampton","711821","DSM Demolition","C10929/15715","138,275.82","Construction and Conversion","130182614","02/08/2017","-","GF - Disposals Programme (Non-Strategic)","C1100"
"Wolverhampton City Council","http://opendatacommunities.org/id/metropolitan-district-council/wolverhampton","711821","DSM Demolition","C10929/15731","48,232.00","Construction and Conversion","130185116","30/08/2017","-","GF - Disposals Programme (Non-Strategic)","C1100"
"Wolverhampton City Council","http://opendatacommunities.org/id/metropolitan-district-council/wolverhampton","711822","Greenleigh Care Ltd","P151449 17091720170825","1,604.00","TPP - Residential Care - Long Term","190368484","30/08/2017","Older People Care Purchasing","OP Care Purchasing (Spot Placements)","R5400"
"Wolverhampton City Council","http://opendatacommunities.org/id/metropolitan-district-council/wolverhampton","711822","Greenleigh Care Ltd","P151449 17091720170825","1,604.00","TPP - Residential Care - Long Term","190368484","30/08/2017","Older People Care Purchasing","OP Care Purchasing (Spot Placements)","R5400"
"Wolverhampton City Council","http://opendatacommunities.org/id/metropolitan-district-council/wolverhampton","711822","Greenleigh Care Ltd","P151449 17091720170825","1,604.00","TPP - Residential Care - Long Term","190368484","30/08/2017","Older People Care Purchasing","OP Care Purchasing (Spot Placements)","R5400"
"Wolverhampton City Council","http://opendatacommunities.org/id/metropolitan-district-council/wolverhampton","711822","Greenleigh Care Ltd","P148881 20081720170731","1,604.00","TPP - Residential Care - Long Term","190362284","02/08/2017","Older People Care Purchasing","OP Care Purchasing (Spot Placements)","R5400"
"Wolverhampton City Council","http://opendatacommunities.org/id/metropolitan-district-council/wolverhampton","711822","Greenleigh Care Ltd","P148881 20081720170731","1,604.00","TPP - Residential Care - Long Term","190362284","02/08/2017","Older People Care Purchasing","OP Care Purchasing (Spot Placements)","R5400"
"Wolverhampton City Council","http://opendatacommunities.org/id/metropolitan-district-council/wolverhampton","711822","Greenleigh Care Ltd","P148881 20081720170731","1,604.00","TPP - Residential Care - Long Term","190362284","02/08/2017","Older People Care Purchasing","OP Care Purchasing (Spot Placements)","R5400"
"Wolverhampton City Council","http://opendatacommunities.org/id/metropolitan-district-council/wolverhampton","711913","Interserve Fire Services Ltd","352706FS","63.00","Equipment - R & M","130183392","09/08/2017","Maintenance Programme","Centralised R&M","R4003"
"Wolverhampton City Council","http://opendatacommunities.org/id/metropolitan-district-council/wolverhampton","711913","Interserve Fire Services Ltd","354739FS","48.65","Equipment - R & M","130182168","18/08/2017","Maintenance Programme","Centralised R&M","R4003"
"Wolverhampton City Council","http://opendatacommunities.org/id/metropolitan-district-council/wolverhampton","711913","Interserve Fire Services Ltd","353647FS","139.23","Equipment - R & M","130180302","04/08/2017","Maintenance Programme","Centralised R&M","R4003"
"Wolverhampton City Council","http://opendatacommunities.org/id/metropolitan-district-council/wolverhampton","711913","Interserve Fire Services Ltd","352704FS","63.00","Equipment - R & M","130180111","11/08/2017","Maintenance Programme","Centralised R&M","R4003"
"Wolverhampton City Council","http://opendatacommunities.org/id/metropolitan-district-council/wolverhampton","711913","Interserve Fire Services Ltd","351427FS","251.43","Equipment - R & M","130182615","09/08/2017","Maintenance Programme","Centralised R&M","R4003"
"Wolverhampton City Council","http://opendatacommunities.org/id/metropolitan-district-council/wolverhampton","711913","Interserve Fire Services Ltd","353649FS","116.75","Equipment - R & M","130180806","04/08/2017","Markets","Bilston Market and Licensed Operations","R4003"
"Wolverhampton City Council","http://opendatacommunities.org/id/metropolitan-district-council/wolverhampton","711913","Interserve Fire Services Ltd","354731FS","2,282.50","Equipment - R & M","130182164","18/08/2017","Maintenance Programme","Centralised R&M","R4003"
"Wolverhampton City Council","http://opendatacommunities.org/id/metropolitan-district-council/wolverhampton","711913","Interserve Fire Services Ltd","353646FS","86.29","Equipment - R & M","130180301","04/08/2017","Maintenance Programme","Centralised R&M","R4003"
"Wolverhampton City Council","http://opendatacommunities.org/id/metropolitan-district-council/wolverhampton","711913","Interserve Fire Services Ltd","352637FS","83.50","Equipment - R & M","130178412","30/08/2017","Schools","Pupil Referral Units - Mid Point","R4003"
"Wolverhampton City Council","http://opendatacommunities.org/id/metropolitan-district-council/wolverhampton","711913","Interserve Fire Services Ltd","354738FS","346.73","Equipment - R & M","130182167","18/08/2017","Maintenance Programme","Centralised R&M","R4003"
"Wolverhampton City Council","http://opendatacommunities.org/id/metropolitan-district-council/wolverhampton","711913","Interserve Fire Services Ltd","353645FS","86.29","Equipment - R & M","130180300","04/08/2017","Maintenance Programme","Centralised R&M","R4003"
"Wolverhampton City Council","http://opendatacommunities.org/id/metropolitan-district-council/wolverhampton","711913","Interserve Fire Services Ltd","3503604FS","29.83","Equipment - R & M","130183539","09/08/2017","Maintenance Programme","Centralised R&M","R4003"
"Wolverhampton City Council","http://opendatacommunities.org/id/metropolitan-district-council/wolverhampton","711940","The Edge Systems Ltd","77657","399.00","Computing - Consumables","130180627","09/08/2017","Licensing","Licensing - Private Hire Vehicles","R4532"
"Wolverhampton City Council","http://opendatacommunities.org/id/metropolitan-district-council/wolverhampton","711940","The Edge Systems Ltd","77657","10.50","Comms - Postage","130180627","09/08/2017","Licensing","Licensing - Private Hire Vehicles","R4503"
"Wolverhampton City Council","http://opendatacommunities.org/id/metropolitan-district-council/wolverhampton","711946","Hollywood Monster","61102","265.26","Marketing \ Non-staff advertising","130185322","25/08/2017","Corporate Communications","Communications & Marketing - General","R4317"
"Wolverhampton City Council","http://opendatacommunities.org/id/metropolitan-district-council/wolverhampton","711948","Ms PK Moore","37","450.00","TPP - Accommodation","130181126","09/08/2017","Child Protection","No Recourse to Public Funds - CIN/CP","R5603"
"Wolverhampton City Council","http://opendatacommunities.org/id/metropolitan-district-council/wolverhampton","712002","Beco Ltd","SI 00000327","450.00","R&M - Departmental planned (internal)","130178427","02/08/2017","Maintenance Programme","Civic Centre Repairs & Maintenance","R2000"
"Wolverhampton City Council","http://opendatacommunities.org/id/metropolitan-district-council/wolverhampton","712005","YMCA Black Country Group","P14916520170728","120.00","Client Allowances","190361746","02/08/2017","Looked After Children","LAC Transitions Team","R6301"
"Wolverhampton City Council","http://opendatacommunities.org/id/metropolitan-district-council/wolverhampton","712005","YMCA Black Country Group","P14986720170804","280.00","Client Allowances","190363620","09/08/2017","Looked After Children","LAC Transitions Team","R6301"
"Wolverhampton City Council","http://opendatacommunities.org/id/metropolitan-district-council/wolverhampton","712005","YMCA Black Country Group","P14916320170728","142.73","Client Allowances","190361744","02/08/2017","Looked After Children","LAC Transitions Team","R6301"
"Wolverhampton City Council","http://opendatacommunities.org/id/metropolitan-district-council/wolverhampton","712005","YMCA Black Country Group","P14916420170728","142.73","Client Allowances","190361745","02/08/2017","Looked After Children","LAC Transitions Team","R6301"
"Wolverhampton City Council","http://opendatacommunities.org/id/metropolitan-district-council/wolverhampton","712018","Lancaster University","8673842","5,550.00","Services - Consultants","130184776","23/08/2017","Headstart","Headstart - Learning Technologies Team","R4404"
"Wolverhampton City Council","http://opendatacommunities.org/id/metropolitan-district-council/wolverhampton","712049","Dr Shingankutti Mangalika","DRMM/52493","809.40","Services - Professional Fees","190365258","16/08/2017","Democratic Services","Coroners Service","R4400"
"Wolverhampton City Council","http://opendatacommunities.org/id/metropolitan-district-council/wolverhampton","712049","Dr Shingankutti Mangalika","DRMM/52493a","387.20","Services - Professional Fees","190365258","16/08/2017","Democratic Services","Coroners Service","R4400"
"Wolverhampton City Council","http://opendatacommunities.org/id/metropolitan-district-council/wolverhampton","712049","Dr Shingankutti Mangalika","DRMM/52493","809.40","Services - Professional Fees","190365258","16/08/2017","Democratic Services","Coroners Service","R4400"
"Wolverhampton City Council","http://opendatacommunities.org/id/metropolitan-district-council/wolverhampton","712049","Dr Shingankutti Mangalika","DRMM/52493a","387.20","Services - Professional Fees","190365258","16/08/2017","Democratic Services","Coroners Service","R4400"
"Wolverhampton City Council","http://opendatacommunities.org/id/metropolitan-district-council/wolverhampton","712054","G S Designs","2907 - 086A","507.25","Construction and Conversion","130184778","16/08/2017","-","Adaptations for People with Disabilites","C1100"
"Wolverhampton City Council","http://opendatacommunities.org/id/metropolitan-district-council/wolverhampton","712129","Carol Davies","98","750.00","Services - Professional Fees","130182169","18/08/2017","Headstart","Headstart Phase 3","R4400"
"Wolverhampton City Council","http://opendatacommunities.org/id/metropolitan-district-council/wolverhampton","712129","Carol Davies","100","210.60","Services - Professional Fees","130183357","30/08/2017","Safeguarding","Safeguarding Board - Childrens","R4400"
"Wolverhampton City Council","http://opendatacommunities.org/id/metropolitan-district-council/wolverhampton","712129","Carol Davies","97","1,750.00","Training Expenses","130181271","02/08/2017","Safeguarding","Safeguarding Board - Childrens","R1650"
"Wolverhampton City Council","http://opendatacommunities.org/id/metropolitan-district-council/wolverhampton","712129","Carol Davies","96","90.00","Room Hire","130182899","23/08/2017","Community Safety","SWP - Probation","R2201"
"Wolverhampton City Council","http://opendatacommunities.org/id/metropolitan-district-council/wolverhampton","712155","Stone�s Throw Media","2278","3,600.00","Services - Professional Fees","130183512","09/08/2017","Headstart","Headstart Phase 3","R4400"
"Wolverhampton City Council","http://opendatacommunities.org/id/metropolitan-district-council/wolverhampton","712171","Robert Conway","370/17","175.00","Services - Professional Fees","130180628","09/08/2017","Visitor Economy","Art Galleries - Schools Art SLA Service","R4400"
"Wolverhampton City Council","http://opendatacommunities.org/id/metropolitan-district-council/wolverhampton","712171","Robert Conway","369/17","112.50","Services - Professional Fees","130180117","02/08/2017","Visitor Economy","Art Galleries - Schools Art SLA Service","R4400"
"Wolverhampton City Council","http://opendatacommunities.org/id/metropolitan-district-council/wolverhampton","712175","William Parratt Masonry Ltd","DG/8355","175.00","R&M - Departmental response (external)","130181454","16/08/2017","Environmental Maintenance","Parks - South West Area Management","R2003"
"Wolverhampton City Council","http://opendatacommunities.org/id/metropolitan-district-council/wolverhampton","712267","Skills for Care Limited - The National Skills Academy","SINV 9156","500.00","Services - Professional Fees","130152122","04/08/2017","Strategic Director People","Strategic Director People","R4400"
"Wolverhampton City Council","http://opendatacommunities.org/id/metropolitan-district-council/wolverhampton","712269","Digital Message Ltd","SI - 201657","5,624.00","Computing - Purchase of Hardware","130185324","23/08/2017","Adult Education","ICT Services","R4530"
"Wolverhampton City Council","http://opendatacommunities.org/id/metropolitan-district-council/wolverhampton","712269","Digital Message Ltd","SI - 201657","125.00","Comms - Postage","130185324","23/08/2017","Adult Education","ICT Services","R4503"
"Wolverhampton City Council","http://opendatacommunities.org/id/metropolitan-district-council/wolverhampton","712287","Modern Mindset Ltd","2017230","650.00","Training Expenses","130183358","09/08/2017","Human Resources","Centralised Training","R1650"
"Wolverhampton City Council","http://opendatacommunities.org/id/metropolitan-district-council/wolverhampton","712323","Poetry On Loan","17/11","275.00","Subscriptions","130180629","02/08/2017","Strategic Organisation Development","Global Budgets","R4701"
"Wolverhampton City Council","http://opendatacommunities.org/id/metropolitan-district-council/wolverhampton","712356","Finning (UK) Ltd","CTIN06514736","142.14","Services - Professional Fees","190364636","16/08/2017","Fleet Services","Fleet Management","R4400"
"Wolverhampton City Council","http://opendatacommunities.org/id/metropolitan-district-council/wolverhampton","712372","Wider Learning","WL0228","3,200.00","Services - Consultants","130184249","23/08/2017","Headstart","Headstart - Learning Technologies Team","R4404"
"Wolverhampton City Council","http://opendatacommunities.org/id/metropolitan-district-council/wolverhampton","712372","Wider Learning","WL0229","6,705.00","Services - Consultants","130184250","23/08/2017","Headstart","Headstart - Learning Technologies Team","R4404"
"Wolverhampton City Council","http://opendatacommunities.org/id/metropolitan-district-council/wolverhampton","712482","Jones Lang LaSalle Limited","EN002 - 0258018","35,000.00","Marketing \ Non-staff advertising","130182900","23/08/2017","City Development","Strategic Disposals","R4317"
"Wolverhampton City Council","http://opendatacommunities.org/id/metropolitan-district-council/wolverhampton","712502","Granart Limited","8494","60.00","Materials for resale","130184527","16/08/2017","Bereavement Services","Cemeteries","R4008"
"Wolverhampton City Council","http://opendatacommunities.org/id/metropolitan-district-council/wolverhampton","712502","Granart Limited","8543","252.00","Materials for resale","130184965","23/08/2017","Bereavement Services","Cemeteries","R4008"
"Wolverhampton City Council","http://opendatacommunities.org/id/metropolitan-district-council/wolverhampton","712530","Lift Truck Services Limited","148529","294.00","Hire of Vehicles","190364038","11/08/2017","Fleet Services","Fleet Management","R3200"
"Wolverhampton City Council","http://opendatacommunities.org/id/metropolitan-district-council/wolverhampton","712583","Acuity Legal Limited","18414","1,401.00","Services - Professional Fees","130185117","25/08/2017","Legal Services","Centralised External Legal Costs","R4400"
"Wolverhampton City Council","http://opendatacommunities.org/id/metropolitan-district-council/wolverhampton","712583","Acuity Legal Limited","18246","1,800.00","Services - Professional Fees","130181127","02/08/2017","Legal Services","Centralised External Legal Costs","R4400"
"Wolverhampton City Council","http://opendatacommunities.org/id/metropolitan-district-council/wolverhampton","712617","Safe Secure Locker Services Ltd","11599","1,216.80","R&M - Departmental planned (external)","130180305","09/08/2017","Maintenance Programme","Centralised R&M","R2001"
"Wolverhampton City Council","http://opendatacommunities.org/id/metropolitan-district-council/wolverhampton","712697","L B Window Cleaning Services","794","30.00","Window Cleaning","130180964","04/08/2017","Early Intervention","EIP Locality 5 � Whitmore Reans","R2701"
"Wolverhampton City Council","http://opendatacommunities.org/id/metropolitan-district-council/wolverhampton","712763","WCC CTAX and NNDR uploads only","P15015020170814","1,639.09","TPP - Accommodation","190364963","16/08/2017","Learning Disabilities Care Purchasing","LD Care Purchasing (Spot Placements)","R5603"
"Wolverhampton City Council","http://opendatacommunities.org/id/metropolitan-district-council/wolverhampton","712763","WCC CTAX and NNDR uploads only","612346688813-C","102.00","Council Tax","190363893","09/08/2017","Child Protection","CIN/CP Social Work Unit - Area 3","R2301"
"Wolverhampton City Council","http://opendatacommunities.org/id/metropolitan-district-council/wolverhampton","712763","WCC CTAX and NNDR uploads only","612345019535(E)","92.00","Council Tax","190365035","16/08/2017","Child Protection","CIN/CP Social Work Unit - Area 5","R2301"
"Wolverhampton City Council","http://opendatacommunities.org/id/metropolitan-district-council/wolverhampton","712763","WCC CTAX and NNDR uploads only","612345701948 August 2017","110.00","Council Tax","190362828","04/08/2017","Customer Services","City Direct Savings","R2301"
"Wolverhampton City Council","http://opendatacommunities.org/id/metropolitan-district-council/wolverhampton","712763","WCC CTAX and NNDR uploads only","P15157120170825","323.20","TPP - Accommodation","190368358","30/08/2017","Learning Disabilities Care Purchasing","LD Care Purchasing (Spot Placements)","R5603"
"Wolverhampton City Council","http://opendatacommunities.org/id/metropolitan-district-council/wolverhampton","712763","WCC CTAX and NNDR uploads only","1004464J 14.08.17","500.00","Grants paid out","190365031","16/08/2017","-","Adaptations for People with Disabilites","C5000"
"Wolverhampton City Council","http://opendatacommunities.org/id/metropolitan-district-council/wolverhampton","712763","WCC CTAX and NNDR uploads only","612346664760a","131.12","No Recourse to Public Funds","190364456","11/08/2017","Child Protection","CIN/CP Social Work Unit - Area 4","R6314"
"Wolverhampton City Council","http://opendatacommunities.org/id/metropolitan-district-council/wolverhampton","712810","Tripod Partners","TRI143096","810.00","Agency Staff","130183976","16/08/2017","Child Protection","MASH","R1100"
"Wolverhampton City Council","http://opendatacommunities.org/id/metropolitan-district-council/wolverhampton","712810","Tripod Partners","TRI151412","810.00","Agency Staff","130182483","16/08/2017","Child Protection","MASH","R1100"
"Wolverhampton City Council","http://opendatacommunities.org/id/metropolitan-district-council/wolverhampton","712810","Tripod Partners","TRI143381","810.00","Agency Staff","130184528","23/08/2017","Child Protection","MASH","R1100"
"Wolverhampton City Council","http://opendatacommunities.org/id/metropolitan-district-council/wolverhampton","712874","Riverside Environmental Services Limited","I025273","525.00","Construction and Conversion","130183517","25/08/2017","-","Electrical Works","C1100"
"Wolverhampton City Council","http://opendatacommunities.org/id/metropolitan-district-council/wolverhampton","712874","Riverside Environmental Services Limited","I025284","480.00","R&M - Departmental planned (external)","130183519","25/08/2017","Corporate Asset Management","Statutory Surveys","R2001"
"Wolverhampton City Council","http://opendatacommunities.org/id/metropolitan-district-council/wolverhampton","712874","Riverside Environmental Services Limited","I025252","1,150.00","Construction and Conversion","130183513","25/08/2017","-","Boiler / Pipework Replacements","C1100"
"Wolverhampton City Council","http://opendatacommunities.org/id/metropolitan-district-council/wolverhampton","712874","Riverside Environmental Services Limited","I025255","775.00","Construction and Conversion","130183137","25/08/2017","-","Electrical Works","C1100"
"Wolverhampton City Council","http://opendatacommunities.org/id/metropolitan-district-council/wolverhampton","712874","Riverside Environmental Services Limited","I025251","1,460.00","R&M - Departmental planned (external)","130183135","25/08/2017","Capital Programme","Capital Programme Team work for external clients","R2001"
"Wolverhampton City Council","http://opendatacommunities.org/id/metropolitan-district-council/wolverhampton","712874","Riverside Environmental Services Limited","I025275","485.00","Construction and Conversion","130183141","25/08/2017","-","Electrical Works","C1100"
"Wolverhampton City Council","http://opendatacommunities.org/id/metropolitan-district-council/wolverhampton","712874","Riverside Environmental Services Limited","I025254","850.00","Construction and Conversion","130183136","25/08/2017","-","Electrical Works","C1100"
"Wolverhampton City Council","http://opendatacommunities.org/id/metropolitan-district-council/wolverhampton","712874","Riverside Environmental Services Limited","I025260","2,400.00","R&M - Departmental planned (external)","130183138","25/08/2017","Facilities Management","Magistrates","R2001"
"Wolverhampton City Council","http://opendatacommunities.org/id/metropolitan-district-council/wolverhampton","712874","Riverside Environmental Services Limited","I025278","525.00","Construction and Conversion","130183774","25/08/2017","-","Electrical Works","C1100"
"Wolverhampton City Council","http://opendatacommunities.org/id/metropolitan-district-council/wolverhampton","712874","Riverside Environmental Services Limited","I02581","170.00","R&M - Departmental planned (external)","130183142","25/08/2017","Corporate Asset Management","Statutory Surveys","R2001"
"Wolverhampton City Council","http://opendatacommunities.org/id/metropolitan-district-council/wolverhampton","712874","Riverside Environmental Services Limited","I025258","850.00","Construction and Conversion","130183514","25/08/2017","-","Electrical Works","C1100"
"Wolverhampton City Council","http://opendatacommunities.org/id/metropolitan-district-council/wolverhampton","712874","Riverside Environmental Services Limited","I025250","525.00","Construction and Conversion","130183134","25/08/2017","-","Boiler / Pipework Replacements","C1100"
"Wolverhampton City Council","http://opendatacommunities.org/id/metropolitan-district-council/wolverhampton","712874","Riverside Environmental Services Limited","I025263","985.00","Construction and Conversion","130183139","25/08/2017","-","Electrical Works","C1100"
"Wolverhampton City Council","http://opendatacommunities.org/id/metropolitan-district-council/wolverhampton","712874","Riverside Environmental Services Limited","I025276","525.00","R&M - Departmental planned (external)","130183977","25/08/2017","Corporate Asset Management","Statutory Surveys","R2001"
"Wolverhampton City Council","http://opendatacommunities.org/id/metropolitan-district-council/wolverhampton","712874","Riverside Environmental Services Limited","I025261","525.00","Construction and Conversion","130183515","25/08/2017","-","Electrical Works","C1100"
"Wolverhampton City Council","http://opendatacommunities.org/id/metropolitan-district-council/wolverhampton","712874","Riverside Environmental Services Limited","I025268","980.00","Construction and Conversion","130183140","25/08/2017","-","Electrical Works","C1100"
"Wolverhampton City Council","http://opendatacommunities.org/id/metropolitan-district-council/wolverhampton","712874","Riverside Environmental Services Limited","I025243","1,150.00","Construction and Conversion","130183005","25/08/2017","-","Boiler / Pipework Replacements","C1100"
"Wolverhampton City Council","http://opendatacommunities.org/id/metropolitan-district-council/wolverhampton","712874","Riverside Environmental Services Limited","I025283","480.00","Construction and Conversion","130183518","25/08/2017","-","Boiler / Pipework Replacements","C1100"
"Wolverhampton City Council","http://opendatacommunities.org/id/metropolitan-district-council/wolverhampton","712874","Riverside Environmental Services Limited","I025248","480.00","Construction and Conversion","130183006","25/08/2017","-","Boiler / Pipework Replacements","C1100"
"Wolverhampton City Council","http://opendatacommunities.org/id/metropolitan-district-council/wolverhampton","712874","Riverside Environmental Services Limited","I025270","525.00","R&M - Departmental planned (external)","130183516","25/08/2017","Maintenance Programme","Centralised R&M","R2001"
"Wolverhampton City Council","http://opendatacommunities.org/id/metropolitan-district-council/wolverhampton","712917","Dr Abbie L Pugh","DRAP/52059","484.00","Services - Professional Fees","190365256","16/08/2017","Democratic Services","Coroners Service","R4400"
"Wolverhampton City Council","http://opendatacommunities.org/id/metropolitan-district-council/wolverhampton","712917","Dr Abbie L Pugh","DRAP/52776","96.80","Services - Professional Fees","190365531","18/08/2017","Democratic Services","Coroners Service","R4400"
"Wolverhampton City Council","http://opendatacommunities.org/id/metropolitan-district-council/wolverhampton","712917","Dr Abbie L Pugh","DRAP/52377","677.60","Services - Professional Fees","190365257","16/08/2017","Democratic Services","Coroners Service","R4400"
"Wolverhampton City Council","http://opendatacommunities.org/id/metropolitan-district-council/wolverhampton","712929","Aspiring Futures CIC","P2S01.","5,980.00","TPP - Social Care Support Services","130182338","04/08/2017","Early Intervention","Transformation Challenge Award","R5501"
"Wolverhampton City Council","http://opendatacommunities.org/id/metropolitan-district-council/wolverhampton","712929","Aspiring Futures CIC","WHS02","4,800.50","TPP - Payments to voluntary groups","130180118","02/08/2017","Headstart","Headstart - Commissioned Activity","R5200"
"Wolverhampton City Council","http://opendatacommunities.org/id/metropolitan-district-council/wolverhampton","712929","Aspiring Futures CIC","WHS01","5,000.00","TPP - Payments to voluntary groups","130183978","11/08/2017","Headstart","Headstart - Commissioned Activity","R5200"
"Wolverhampton City Council","http://opendatacommunities.org/id/metropolitan-district-council/wolverhampton","712930","Gloucester Street Community Centre","SI - 131","117.50","TPP - Child Care provided for client","130180965","09/08/2017","Child Protection","MASH","R5034"
"Wolverhampton City Council","http://opendatacommunities.org/id/metropolitan-district-council/wolverhampton","712930","Gloucester Street Community Centre","SI 89","80.00","TPP - Child Care provided for client","130180966","02/08/2017","Child Protection","MASH","R5034"
"Wolverhampton City Council","http://opendatacommunities.org/id/metropolitan-district-council/wolverhampton","712944","The Boho Creative","230836","240.00","Marketing \ Non-staff advertising","130181128","23/08/2017","Skills","Working Wolverhampton","R4317"
"Wolverhampton City Council","http://opendatacommunities.org/id/metropolitan-district-council/wolverhampton","712944","The Boho Creative","230836","-240.00","Marketing \ Non-staff advertising","130181128","23/08/2017","Skills","Working Wolverhampton","R4317"
"Wolverhampton City Council","http://opendatacommunities.org/id/metropolitan-district-council/wolverhampton","712944","The Boho Creative","230836","240.00","Marketing \ Non-staff advertising","130181128","23/08/2017","Skills","Working Wolverhampton","R4317"
"Wolverhampton City Council","http://opendatacommunities.org/id/metropolitan-district-council/wolverhampton","712944","The Boho Creative","230816","1,460.00","Services - Professional Fees","130177175","02/08/2017","Community Safety","SWP - Infrastructure","R4400"
"Wolverhampton City Council","http://opendatacommunities.org/id/metropolitan-district-council/wolverhampton","712944","The Boho Creative","230844","120.00","Printing","130184531","16/08/2017","Democratic Services","Mayoral Expenses","R4300"
"Wolverhampton City Council","http://opendatacommunities.org/id/metropolitan-district-council/wolverhampton","712956","Dr Paul E Hiley","DRPH/52646","1,151.60","Services - Professional Fees","190365251","16/08/2017","Democratic Services","Coroners Service","R4400"
"Wolverhampton City Council","http://opendatacommunities.org/id/metropolitan-district-council/wolverhampton","712956","Dr Paul E Hiley","DRPH/52322","714.40","Services - Professional Fees","190365250","16/08/2017","Democratic Services","Coroners Service","R4400"
"Wolverhampton City Council","http://opendatacommunities.org/id/metropolitan-district-council/wolverhampton","712960","Coventry and Warwickshire Partnership Trust","0000029535 M1 GUM 17","276.28","TPP - Public Health Contracts","190364303","11/08/2017","Contracts","Sexual Health","R5060"
"Wolverhampton City Council","http://opendatacommunities.org/id/metropolitan-district-council/wolverhampton","712960","Coventry and Warwickshire Partnership Trust","0000028943 M11","108.61","TPP - Public Health Contracts","190364304","11/08/2017","Contracts","Sexual Health","R5060"
"Wolverhampton City Council","http://opendatacommunities.org/id/metropolitan-district-council/wolverhampton","713024","Spectrum AV Ltd","INV292","1,267.19","Computing - Purchase of Hardware","130186118","30/08/2017","School Planning & Resources","Technical Support","R4530"
"Wolverhampton City Council","http://opendatacommunities.org/id/metropolitan-district-council/wolverhampton","713059","Sage Pay Europe Ltd (formely Sage Pay)","EU-00193575","720.05","Services - Bank Charges","130183359","25/08/2017","Central Corporate Budgets","Corporate Management","R4403"
"Wolverhampton City Council","http://opendatacommunities.org/id/metropolitan-district-council/wolverhampton","713059","Sage Pay Europe Ltd (formely Sage Pay)","EU - 00153249","654.30","Services - Bank Charges","130179268","09/08/2017","Central Corporate Budgets","Corporate Management","R4403"
"Wolverhampton City Council","http://opendatacommunities.org/id/metropolitan-district-council/wolverhampton","713065","David Perrin","WSCB - 0006","475.00","Training Expenses","130180635","02/08/2017","Safeguarding","Safeguarding Board - Childrens","R1650"
"Wolverhampton City Council","http://opendatacommunities.org/id/metropolitan-district-council/wolverhampton","713065","David Perrin","WSCB - 0008","475.00","Training Expenses","130183980","25/08/2017","Safeguarding","Safeguarding Board - Childrens","R1650"
"Wolverhampton City Council","http://opendatacommunities.org/id/metropolitan-district-council/wolverhampton","713065","David Perrin","WSCB - 0005","725.00","Training Expenses","130180634","04/08/2017","Safeguarding","Safeguarding Board - Childrens","R1650"
"Wolverhampton City Council","http://opendatacommunities.org/id/metropolitan-district-council/wolverhampton","713109","DMB Consultancy Ltd","452","2,320.00","Services - Professional Fees","130183007","25/08/2017","Human Resources","Doctors Service","R4400"
"Wolverhampton City Council","http://opendatacommunities.org/id/metropolitan-district-council/wolverhampton","713109","DMB Consultancy Ltd","452","-2,320.00","Services - Professional Fees","130183007","25/08/2017","Human Resources","Doctors Service","R4400"
"Wolverhampton City Council","http://opendatacommunities.org/id/metropolitan-district-council/wolverhampton","713109","DMB Consultancy Ltd","452","2,320.00","Services - Professional Fees","130183007","25/08/2017","Human Resources","Doctors Service","R4400"
"Wolverhampton City Council","http://opendatacommunities.org/id/metropolitan-district-council/wolverhampton","713118","Bethphage","4817-20170825","12,751.20","TPP - Supported Living","190368251","30/08/2017","Learning Disabilities Care Purchasing","LD Care Purchasing (Spot Placements)","R5422"
"Wolverhampton City Council","http://opendatacommunities.org/id/metropolitan-district-council/wolverhampton","713118","Bethphage","507720170815","15,939.00","TPP - Supported Living","190365145","16/08/2017","Learning Disabilities Care Purchasing","LD Care Purchasing (Spot Placements)","R5422"
"Wolverhampton City Council","http://opendatacommunities.org/id/metropolitan-district-council/wolverhampton","713162","Bita Pathways","1250620170803","160.00","TPP - Day Care","190363131","04/08/2017","Learning Disabilities Care Purchasing","LD Care Purchasing (Spot Placements)","R5430"
"Wolverhampton City Council","http://opendatacommunities.org/id/metropolitan-district-council/wolverhampton","713169","New England Flooring Company Ltd","5523","2,426.00","R&M - Departmental planned (external)","130183981","25/08/2017","Maintenance Programme","Centralised R&M","R2001"
"Wolverhampton City Council","http://opendatacommunities.org/id/metropolitan-district-council/wolverhampton","713226","MBC Badges Co","53874","262.50","Stationery","130181708","02/08/2017","Healthier Places Service","Healthy Lifestyles Team","R4308"
"Wolverhampton City Council","http://opendatacommunities.org/id/metropolitan-district-council/wolverhampton","713246","Midland Foods Limited","1113814","24.74","Provisions (Not for resale)","130183145","09/08/2017","Learning Disability Provider","Duke Street Bungalows","R4101"
"Wolverhampton City Council","http://opendatacommunities.org/id/metropolitan-district-council/wolverhampton","713246","Midland Foods Limited","1115745","24.24","Provisions (Not for resale)","130183155","16/08/2017","Older People Provider Services","Blakenhall Resource Centre","R4101"
"Wolverhampton City Council","http://opendatacommunities.org/id/metropolitan-district-council/wolverhampton","713246","Midland Foods Limited","1113984","68.62","Provisions (Not for resale)","130183146","11/08/2017","Older People Provider Services","Bradley Lodge Resource Centre","R4101"
"Wolverhampton City Council","http://opendatacommunities.org/id/metropolitan-district-council/wolverhampton","713246","Midland Foods Limited","1115741","140.80","Provisions (Not for resale)","130183154","16/08/2017","Older People Provider Services","Bradley Lodge Resource Centre","R4101"
"Wolverhampton City Council","http://opendatacommunities.org/id/metropolitan-district-council/wolverhampton","713246","Midland Foods Limited","1113771","27.42","Provisions (Not for resale)","130183143","11/08/2017","Learning Disability Provider","Duke Street Bungalows","R4101"
"Wolverhampton City Council","http://opendatacommunities.org/id/metropolitan-district-council/wolverhampton","713246","Midland Foods Limited","1116254","5.48","Provisions (Not for resale)","130183157","23/08/2017","Older People Provider Services","Blakenhall Resource Centre","R4101"
"Wolverhampton City Council","http://opendatacommunities.org/id/metropolitan-district-council/wolverhampton","713246","Midland Foods Limited","1116384","42.67","Provisions (Not for resale)","130183162","25/08/2017","Older People Provider Services","Bradley Lodge Resource Centre","R4101"
"Wolverhampton City Council","http://opendatacommunities.org/id/metropolitan-district-council/wolverhampton","713246","Midland Foods Limited","1115177","96.92","Provisions (Not for resale)","130183151","11/08/2017","Older People Provider Services","Bradley Lodge Resource Centre","R4101"
"Wolverhampton City Council","http://opendatacommunities.org/id/metropolitan-district-council/wolverhampton","713246","Midland Foods Limited","1116331","103.00","Provisions (Not for resale)","130183160","23/08/2017","Older People Provider Services","Bradley Lodge Resource Centre","R4101"
"Wolverhampton City Council","http://opendatacommunities.org/id/metropolitan-district-council/wolverhampton","713246","Midland Foods Limited","1112628","71.20","Provisions (Not for resale)","130179290","04/08/2017","Older People Provider Services","Blakenhall Resource Centre","R4101"
"Wolverhampton City Council","http://opendatacommunities.org/id/metropolitan-district-council/wolverhampton","713246","Midland Foods Limited","1114898","106.38","Provisions (Not for resale)","130183150","11/08/2017","Older People Provider Services","Bradley Lodge Resource Centre","R4101"
"Wolverhampton City Council","http://opendatacommunities.org/id/metropolitan-district-council/wolverhampton","713246","Midland Foods Limited","1115901","23.93","Provisions (Not for resale)","130183156","18/08/2017","Older People Provider Services","Bradley Lodge Resource Centre","R4101"
"Wolverhampton City Council","http://opendatacommunities.org/id/metropolitan-district-council/wolverhampton","713258","MTH Cleaning Equipment Ltd","MTH156683","138.00","R&M - Departmental planned (external)","130184779","16/08/2017","Parking Services","Short Stay - Civic Centre","R2001"
"Wolverhampton City Council","http://opendatacommunities.org/id/metropolitan-district-council/wolverhampton","713286","Energas","4458388","21.72","Equipment - R & M","190365102","16/08/2017","Fleet Services","Fleet Management","R4003"
"Wolverhampton City Council","http://opendatacommunities.org/id/metropolitan-district-council/wolverhampton","713286","Energas","4458388","17.26","Equipment - R & M","190365102","16/08/2017","Fleet Services","Fleet Management","R4003"
"Wolverhampton City Council","http://opendatacommunities.org/id/metropolitan-district-council/wolverhampton","713286","Energas","4458388","17.26","Equipment - R & M","190365102","16/08/2017","Fleet Services","Fleet Management","R4003"
"Wolverhampton City Council","http://opendatacommunities.org/id/metropolitan-district-council/wolverhampton","713286","Energas","4458388","8.63","Equipment - R & M","190365102","16/08/2017","Fleet Services","Fleet Management","R4003"
"Wolverhampton City Council","http://opendatacommunities.org/id/metropolitan-district-council/wolverhampton","713341","Nexus DMS Ltd","370596","92.50","Equipment - R & M","130183982","30/08/2017","Independent Living Service","Independent Living Service","R4003"
"Wolverhampton City Council","http://opendatacommunities.org/id/metropolitan-district-council/wolverhampton","713341","Nexus DMS Ltd","370596","26.58","Equipment - R & M","130183982","30/08/2017","Independent Living Service","Independent Living Service","R4003"
"Wolverhampton City Council","http://opendatacommunities.org/id/metropolitan-district-council/wolverhampton","713341","Nexus DMS Ltd","370596","10.00","Equipment - R & M","130183982","30/08/2017","Independent Living Service","Independent Living Service","R4003"
"Wolverhampton City Council","http://opendatacommunities.org/id/metropolitan-district-council/wolverhampton","713376","PageOne Communications Ltd","80576738","286.77","Comms - Mobile Telephones","130181455","02/08/2017","Adult Education","Service Wide","R4507"
"Wolverhampton City Council","http://opendatacommunities.org/id/metropolitan-district-council/wolverhampton","713376","PageOne Communications Ltd","80576738","822.25","Comms - Mobile Telephones","130181455","02/08/2017","Adult Education","Service Wide","R4507"
"Wolverhampton City Council","http://opendatacommunities.org/id/metropolitan-district-council/wolverhampton","713487","Gandlake Limited","90555","35,911.00","Computing - Licences","130182330","02/08/2017","ICTS","Strategic ICTS (ICT Service Budget)","R4535"
"Wolverhampton City Council","http://opendatacommunities.org/id/metropolitan-district-council/wolverhampton","713492","Iansyst","SI - 291282","222.00","Equipment - Purchase","130182315","23/08/2017","Learning Disability Provider","Learning Disabilities Management","R4000"
"Wolverhampton City Council","http://opendatacommunities.org/id/metropolitan-district-council/wolverhampton","713492","Iansyst","SI - 291308","222.00","Equipment - Purchase","130182484","23/08/2017","Learning Disability Provider","Learning Disabilities Management","R4000"
"Wolverhampton City Council","http://opendatacommunities.org/id/metropolitan-district-council/wolverhampton","713526","Williams Medical Supplies","WSI - 1433287","349.00","Equipment - R & M","130184780","16/08/2017","Healthier Places Service","Healthy Lifestyles Team","R4003"
"Wolverhampton City Council","http://opendatacommunities.org/id/metropolitan-district-council/wolverhampton","713526","Williams Medical Supplies","WSI - 1442160","349.00","Equipment - R & M","130171926","04/08/2017","Healthier Places Service","Healthy Lifestyles Team","R4003"
"Wolverhampton City Council","http://opendatacommunities.org/id/metropolitan-district-council/wolverhampton","713567","Yarrington Limited","14348","2,200.00","Marketing \ Non-staff advertising","130183520","23/08/2017","Corporate Communications","Communications & Marketing - General","R4317"
"Wolverhampton City Council","http://opendatacommunities.org/id/metropolitan-district-council/wolverhampton","713567","Yarrington Limited","14321","2,770.00","Services - Consultants","130181456","16/08/2017","Skills","Work Box","R4404"
"Wolverhampton City Council","http://opendatacommunities.org/id/metropolitan-district-council/wolverhampton","713569","Howells Glazing","Grant No 006/17c","4,283.25","Grants paid out","190366667","23/08/2017","-","GF - Black Country Gold ERDF Project","C5000"
"Wolverhampton City Council","http://opendatacommunities.org/id/metropolitan-district-council/wolverhampton","713704","Classroom Resources Ltd","118950 - cancelled cheque","73.49","Equipment - Purchase","130184264","11/08/2017","Schools","Coppice Community High School","R4000"
"Wolverhampton City Council","http://opendatacommunities.org/id/metropolitan-district-council/wolverhampton","713747","Link 51 Link Locker (Whittan Ind)","90997246","4,542.59","Construction and Conversion","130183008","23/08/2017","-","Primary Expansion Programme","C1100"
"Wolverhampton City Council","http://opendatacommunities.org/id/metropolitan-district-council/wolverhampton","713861","SecurePro Ltd","1446","1,245.00","Training Expenses","130181273","09/08/2017","Skills","IMPACT","R1650"
"Wolverhampton City Council","http://opendatacommunities.org/id/metropolitan-district-council/wolverhampton","713870","Print Express","00931597","90.00","Stationery","130183983","11/08/2017","Safeguarding","Head of Service Quality and Safeguarding","R4308"
"Wolverhampton City Council","http://opendatacommunities.org/id/metropolitan-district-council/wolverhampton","713873","Quartzelec Ltd","7113133","195.00","R&M - Departmental planned (external)","130184782","18/08/2017","Maintenance Programme","Centralised R&M","R2001"
"Wolverhampton City Council","http://opendatacommunities.org/id/metropolitan-district-council/wolverhampton","713873","Quartzelec Ltd","7113143","123.06","R&M - Departmental planned (external)","130184784","18/08/2017","Maintenance Programme","Centralised R&M","R2001"
"Wolverhampton City Council","http://opendatacommunities.org/id/metropolitan-district-council/wolverhampton","713873","Quartzelec Ltd","7113143","743.60","R&M - Departmental planned (external)","130184784","18/08/2017","Maintenance Programme","Centralised R&M","R2001"
"Wolverhampton City Council","http://opendatacommunities.org/id/metropolitan-district-council/wolverhampton","713873","Quartzelec Ltd","7113136","195.00","R&M - Departmental planned (external)","130184532","16/08/2017","Maintenance Programme","Centralised R&M","R2001"
"Wolverhampton City Council","http://opendatacommunities.org/id/metropolitan-district-council/wolverhampton","713873","Quartzelec Ltd","7119788","470.87","R&M - Departmental planned (external)","130185330","23/08/2017","Maintenance Programme","Centralised R&M","R2001"
"Wolverhampton City Council","http://opendatacommunities.org/id/metropolitan-district-council/wolverhampton","713873","Quartzelec Ltd","7113138","722.50","R&M - Departmental planned (external)","130184783","18/08/2017","Maintenance Programme","Centralised R&M","R2001"
"Wolverhampton City Council","http://opendatacommunities.org/id/metropolitan-district-council/wolverhampton","713873","Quartzelec Ltd","7113138","151.75","R&M - Departmental planned (external)","130184783","18/08/2017","Maintenance Programme","Centralised R&M","R2001"
"Wolverhampton City Council","http://opendatacommunities.org/id/metropolitan-district-council/wolverhampton","713873","Quartzelec Ltd","7119577","625.00","R&M - Departmental planned (external)","130185329","23/08/2017","Maintenance Programme","Centralised R&M","R2001"
"Wolverhampton City Council","http://opendatacommunities.org/id/metropolitan-district-council/wolverhampton","713873","Quartzelec Ltd","7116833","1,692.60","R&M - Departmental planned (external)","130181135","09/08/2017","Maintenance Programme","Centralised R&M","R2001"
"Wolverhampton City Council","http://opendatacommunities.org/id/metropolitan-district-council/wolverhampton","713873","Quartzelec Ltd","7119572","484.25","R&M - Departmental planned (external)","130185328","23/08/2017","Maintenance Programme","Centralised R&M","R2001"
"Wolverhampton City Council","http://opendatacommunities.org/id/metropolitan-district-council/wolverhampton","713873","Quartzelec Ltd","7115876","195.00","R&M - Departmental planned (external)","130184533","18/08/2017","Maintenance Programme","Centralised R&M","R2001"
"Wolverhampton City Council","http://opendatacommunities.org/id/metropolitan-district-council/wolverhampton","713873","Quartzelec Ltd","7113146","585.00","R&M - Departmental planned (external)","130184785","18/08/2017","Maintenance Programme","Centralised R&M","R2001"
"Wolverhampton City Council","http://opendatacommunities.org/id/metropolitan-district-council/wolverhampton","713873","Quartzelec Ltd","7117243","581.25","R&M - Departmental planned (external)","130168040","23/08/2017","Maintenance Programme","Centralised R&M","R2001"
"Wolverhampton City Council","http://opendatacommunities.org/id/metropolitan-district-council/wolverhampton","713873","Quartzelec Ltd","7116423","585.00","R&M - Departmental planned (external)","130178774","09/08/2017","Maintenance Programme","Centralised R&M","R2001"
"Wolverhampton City Council","http://opendatacommunities.org/id/metropolitan-district-council/wolverhampton","713873","Quartzelec Ltd","7113132","195.00","R&M - Departmental planned (external)","130184781","18/08/2017","Maintenance Programme","Centralised R&M","R2001"
"Wolverhampton City Council","http://opendatacommunities.org/id/metropolitan-district-council/wolverhampton","713882","Frontier Plastics Ltd","N53863","3,909.14","TPP - Public Health Contracts","130181136","30/08/2017","Contracts","Alcohol and Drug","R5060"
"Wolverhampton City Council","http://opendatacommunities.org/id/metropolitan-district-council/wolverhampton","713882","Frontier Plastics Ltd","N53863","-3,909.14","TPP - Public Health Contracts","130181136","30/08/2017","Contracts","Alcohol and Drug","R5060"
"Wolverhampton City Council","http://opendatacommunities.org/id/metropolitan-district-council/wolverhampton","713882","Frontier Plastics Ltd","N53863","3,909.14","TPP - Public Health Contracts","130181136","30/08/2017","Contracts","Alcohol and Drug","R5060"
"Wolverhampton City Council","http://opendatacommunities.org/id/metropolitan-district-council/wolverhampton","713882","Frontier Plastics Ltd","N53863","20.00","TPP - Public Health Contracts","130181136","30/08/2017","Contracts","Alcohol and Drug","R5060"
"Wolverhampton City Council","http://opendatacommunities.org/id/metropolitan-district-council/wolverhampton","713926","Cefndy Healthcare","800561723","334.60","Equipment - Purchase","130181711","11/08/2017","Independent Living Service","Independent Living Service","R4000"
"Wolverhampton City Council","http://opendatacommunities.org/id/metropolitan-district-council/wolverhampton","713952","Unit 4 Business Software Limited","2000004221","2,750.00","Services - Professional Fees","130186121","30/08/2017","Strategic Finance","Agresso System Support","R4400"
"Wolverhampton City Council","http://opendatacommunities.org/id/metropolitan-district-council/wolverhampton","713989","Service Point(Trading division of Paragon Group uk Ltd)","92270817","588.00","Printing","130183009","25/08/2017","Director of Governance","Merchandising for Wolves-in-Wolves","R4300"
"Wolverhampton City Council","http://opendatacommunities.org/id/metropolitan-district-council/wolverhampton","713989","Service Point(Trading division of Paragon Group uk Ltd)","92270818","895.00","Marketing \ Non-staff advertising","130183010","25/08/2017","Director of Governance","Director of Governance","R4317"
"Wolverhampton City Council","http://opendatacommunities.org/id/metropolitan-district-council/wolverhampton","713989","Service Point(Trading division of Paragon Group uk Ltd)","92270820","1,223.00","Marketing \ Non-staff advertising","130183012","25/08/2017","Licensing","Licensing - Private Hire Vehicles","R4317"
"Wolverhampton City Council","http://opendatacommunities.org/id/metropolitan-district-council/wolverhampton","713989","Service Point(Trading division of Paragon Group uk Ltd)","92270819","50.00","Marketing \ Non-staff advertising","130183011","25/08/2017","Corporate Communications","Communications & Marketing - General","R4317"
"Wolverhampton City Council","http://opendatacommunities.org/id/metropolitan-district-council/wolverhampton","713989","Service Point(Trading division of Paragon Group uk Ltd)","92270821","67.50","Marketing \ Non-staff advertising","130183013","25/08/2017","Director of Governance","Director of Governance","R4317"
"Wolverhampton City Council","http://opendatacommunities.org/id/metropolitan-district-council/wolverhampton","713994","Mrs Jaswinder Hothi","028","450.00","Accommodation Costs","130183775","30/08/2017","Child Protection","CIN/CP Social Work Unit - Area 5","R4900"
"Wolverhampton City Council","http://opendatacommunities.org/id/metropolitan-district-council/wolverhampton","714024","Cenex","CEN-I-1942","2,300.00","Services - Professional Fees","130183984","30/08/2017","Black Country Transport","Black Country Transport Director","R4400"
"Wolverhampton City Council","http://opendatacommunities.org/id/metropolitan-district-council/wolverhampton","714048","Lisa Cawthorn","57","388.70","Services - Professional Fees","130181459","09/08/2017","Looked After Children","Panel Expenses Fostering & Adoption","R4400"
"Wolverhampton City Council","http://opendatacommunities.org/id/metropolitan-district-council/wolverhampton","714048","Lisa Cawthorn","57","-388.70","Services - Professional Fees","130181459","09/08/2017","Looked After Children","Panel Expenses Fostering & Adoption","R4400"
"Wolverhampton City Council","http://opendatacommunities.org/id/metropolitan-district-council/wolverhampton","714048","Lisa Cawthorn","57","388.70","Services - Professional Fees","130181459","09/08/2017","Looked After Children","Panel Expenses Fostering & Adoption","R4400"
"Wolverhampton City Council","http://opendatacommunities.org/id/metropolitan-district-council/wolverhampton","714048","Lisa Cawthorn","56","388.70","Services - Professional Fees","130181458","09/08/2017","Looked After Children","Panel Expenses Fostering & Adoption","R4400"
"Wolverhampton City Council","http://opendatacommunities.org/id/metropolitan-district-council/wolverhampton","714048","Lisa Cawthorn","56","-388.70","Services - Professional Fees","130181458","09/08/2017","Looked After Children","Panel Expenses Fostering & Adoption","R4400"
"Wolverhampton City Council","http://opendatacommunities.org/id/metropolitan-district-council/wolverhampton","714048","Lisa Cawthorn","56","388.70","Services - Professional Fees","130181458","09/08/2017","Looked After Children","Panel Expenses Fostering & Adoption","R4400"
"Wolverhampton City Council","http://opendatacommunities.org/id/metropolitan-district-council/wolverhampton","714074","Becky Lloyd School Improvement","130 HEADSTART 1","3,400.00","Services - Professional Fees","130181712","02/08/2017","Headstart","Headstart Phase 3","R4400"
"Wolverhampton City Council","http://opendatacommunities.org/id/metropolitan-district-council/wolverhampton","714127","Flavor of paradise Caf�","003527","358.00","Catering","130182915","04/08/2017","Management and Administration","Public Health Support Costs","R4100"
"Wolverhampton City Council","http://opendatacommunities.org/id/metropolitan-district-council/wolverhampton","714127","Flavor of paradise Caf�","003527","-358.00","Catering","130182915","04/08/2017","Management and Administration","Public Health Support Costs","R4100"
"Wolverhampton City Council","http://opendatacommunities.org/id/metropolitan-district-council/wolverhampton","714127","Flavor of paradise Caf�","003527","358.00","Catering","130182915","04/08/2017","Management and Administration","Public Health Support Costs","R4100"
"Wolverhampton City Council","http://opendatacommunities.org/id/metropolitan-district-council/wolverhampton","714127","Flavor of paradise Caf�","00647","585.00","Catering","130182912","09/08/2017","Service Director Public Health & Wellbeing","Service Director Public Health & Wellbeing","R4100"
"Wolverhampton City Council","http://opendatacommunities.org/id/metropolitan-district-council/wolverhampton","714127","Flavor of paradise Caf�","00647","-585.00","Catering","130182912","09/08/2017","Service Director Public Health & Wellbeing","Service Director Public Health & Wellbeing","R4100"
"Wolverhampton City Council","http://opendatacommunities.org/id/metropolitan-district-council/wolverhampton","714127","Flavor of paradise Caf�","00647","585.00","Catering","130182912","09/08/2017","Service Director Public Health & Wellbeing","Service Director Public Health & Wellbeing","R4100"
"Wolverhampton City Council","http://opendatacommunities.org/id/metropolitan-district-council/wolverhampton","714154","Grove Primary School In House Fund","EYPP Spring 2017a","381.60","TPP - Private Nursery Education Funding","190332604","04/08/2017","Early Years","Early Years Pupil Premium","R5035"
"Wolverhampton City Council","http://opendatacommunities.org/id/metropolitan-district-council/wolverhampton","714184","Lord Search and Selection Limited","933307F","3,333.33","Agency Staff","130183014","25/08/2017","Service Director Children & Young People","Children & Young People Support Costs","R1100"
"Wolverhampton City Council","http://opendatacommunities.org/id/metropolitan-district-council/wolverhampton","714187","Hortons� Estate Limited","63786","1,500.00","Rent","130185331","23/08/2017","Skills","Connexions Contract","R2200"
"Wolverhampton City Council","http://opendatacommunities.org/id/metropolitan-district-council/wolverhampton","714192","The Franking Machine Company Ltd","16659","239.50","Equipment - R & M","130182316","18/08/2017","ICTS","Document Centre - General","R4003"
"Wolverhampton City Council","http://opendatacommunities.org/id/metropolitan-district-council/wolverhampton","714193","Leighton Best Consultancy","16/0458/SAG","290.00","Grants paid out","190365828","18/08/2017","-","Disabled Facilities Grants","C5000"
"Wolverhampton City Council","http://opendatacommunities.org/id/metropolitan-district-council/wolverhampton","714193","Leighton Best Consultancy","16/0736/SAG","305.00","Grants paid out","190365830","18/08/2017","-","Disabled Facilities Grants","C5000"
"Wolverhampton City Council","http://opendatacommunities.org/id/metropolitan-district-council/wolverhampton","714227","Dr Elizabeth Ball","28","914.64","TPP - Public Health Contracts","130183015","30/08/2017","Contracts","Alcohol and Drug","R5060"
"Wolverhampton City Council","http://opendatacommunities.org/id/metropolitan-district-council/wolverhampton","714227","Dr Elizabeth Ball","28","914.64","TPP - Public Health Contracts","130183015","30/08/2017","Contracts","Alcohol and Drug","R5060"
"Wolverhampton City Council","http://opendatacommunities.org/id/metropolitan-district-council/wolverhampton","714227","Dr Elizabeth Ball","28","-914.64","TPP - Public Health Contracts","130183015","30/08/2017","Contracts","Alcohol and Drug","R5060"
"Wolverhampton City Council","http://opendatacommunities.org/id/metropolitan-district-council/wolverhampton","714229","Katie Miller","327","2,400.00","Services - Professional Fees","130182171","09/08/2017","Legal Services","Centralised External Legal Costs","R4400"
"Wolverhampton City Council","http://opendatacommunities.org/id/metropolitan-district-council/wolverhampton","714240","Engage Education Ltd","H-07171","7,050.00","Services - Consultants","130178785","02/08/2017","Headstart","Headstart - Learning Technologies Team","R4404"
"Wolverhampton City Council","http://opendatacommunities.org/id/metropolitan-district-council/wolverhampton","714247","Plymouth Hospitals NHS Trust","898042a","133.00","TPP - Public Health Contracts","190366752","23/08/2017","Contracts","Sexual Health","R5060"
"Wolverhampton City Council","http://opendatacommunities.org/id/metropolitan-district-council/wolverhampton","714260","Liberty Support  / SevaSupport Ltd","SS0180720170816","2,442.92","TPP - Supported Living","190365389","18/08/2017","Learning Disabilities Care Purchasing","LD Care Purchasing (Spot Placements)","R5422"
"Wolverhampton City Council","http://opendatacommunities.org/id/metropolitan-district-council/wolverhampton","714260","Liberty Support  / SevaSupport Ltd","SS00179820170816","468.00","TPP - Home Care","190365382","18/08/2017","Learning Disabilities Care Purchasing","LD Care Purchasing (Spot Placements)","R5420"
"Wolverhampton City Council","http://opendatacommunities.org/id/metropolitan-district-council/wolverhampton","714260","Liberty Support  / SevaSupport Ltd","SS00180120170816","208.00","TPP - Home Care","190365384","18/08/2017","Learning Disabilities Care Purchasing","LD Care Purchasing (Spot Placements)","R5420"
"Wolverhampton City Council","http://opendatacommunities.org/id/metropolitan-district-council/wolverhampton","714260","Liberty Support  / SevaSupport Ltd","SS00006320170811","780.00","TPP - Home Care","190364531","16/08/2017","Learning Disabilities Care Purchasing","LD Care Purchasing (Spot Placements)","R5420"
"Wolverhampton City Council","http://opendatacommunities.org/id/metropolitan-district-council/wolverhampton","714260","Liberty Support  / SevaSupport Ltd","SS00040120170811","195.00","TPP - Home Care","190364533","16/08/2017","Learning Disabilities Care Purchasing","LD Care Purchasing (Spot Placements)","R5420"
"Wolverhampton City Council","http://opendatacommunities.org/id/metropolitan-district-council/wolverhampton","714260","Liberty Support  / SevaSupport Ltd","SS00179920170816","364.00","TPP - Home Care","190365383","18/08/2017","Learning Disabilities Care Purchasing","LD Care Purchasing (Spot Placements)","R5420"
"Wolverhampton City Council","http://opendatacommunities.org/id/metropolitan-district-council/wolverhampton","714260","Liberty Support  / SevaSupport Ltd","SS00180820170816","1,134.00","TPP - Supported Living","190365388","18/08/2017","Learning Disabilities Care Purchasing","LD Care Purchasing (Spot Placements)","R5422"
"Wolverhampton City Council","http://opendatacommunities.org/id/metropolitan-district-council/wolverhampton","714260","Liberty Support  / SevaSupport Ltd","SS00024020170811","650.00","TPP - Home Care","190364532","16/08/2017","Learning Disabilities Care Purchasing","LD Care Purchasing (Spot Placements)","R5420"
"Wolverhampton City Council","http://opendatacommunities.org/id/metropolitan-district-council/wolverhampton","714260","Liberty Support  / SevaSupport Ltd","SS00051120170811","780.00","TPP - Home Care","190364534","16/08/2017","Learning Disabilities Care Purchasing","LD Care Purchasing (Spot Placements)","R5420"
"Wolverhampton City Council","http://opendatacommunities.org/id/metropolitan-district-council/wolverhampton","714260","Liberty Support  / SevaSupport Ltd","SS00179720170816","117.00","TPP - Home Care","190365381","18/08/2017","Learning Disabilities Care Purchasing","LD Care Purchasing (Spot Placements)","R5420"
"Wolverhampton City Council","http://opendatacommunities.org/id/metropolitan-district-council/wolverhampton","714260","Liberty Support  / SevaSupport Ltd","SS00180320170816","936.00","TPP - Home Care","190365386","18/08/2017","Mental Health Assesment & Care Management","MH Care Purchasing (Spot Placements)","R5420"
"Wolverhampton City Council","http://opendatacommunities.org/id/metropolitan-district-council/wolverhampton","714260","Liberty Support  / SevaSupport Ltd","SS00070820170811","780.00","TPP - Home Care","190364536","16/08/2017","Learning Disabilities Care Purchasing","LD Care Purchasing (Spot Placements)","R5420"
"Wolverhampton City Council","http://opendatacommunities.org/id/metropolitan-district-council/wolverhampton","714260","Liberty Support  / SevaSupport Ltd","SS00002020170811","715.00","TPP - Home Care","190364530","16/08/2017","Learning Disabilities Care Purchasing","LD Care Purchasing (Spot Placements)","R5420"
"Wolverhampton City Council","http://opendatacommunities.org/id/metropolitan-district-council/wolverhampton","714260","Liberty Support  / SevaSupport Ltd","SS00061520170811","780.00","TPP - Home Care","190364535","16/08/2017","Learning Disabilities Care Purchasing","LD Care Purchasing (Spot Placements)","R5420"
"Wolverhampton City Council","http://opendatacommunities.org/id/metropolitan-district-council/wolverhampton","714260","Liberty Support  / SevaSupport Ltd","SS00180220170816","936.00","TPP - Home Care","190365385","18/08/2017","Mental Health Assesment & Care Management","MH Care Purchasing (Spot Placements)","R5420"
"Wolverhampton City Council","http://opendatacommunities.org/id/metropolitan-district-council/wolverhampton","714260","Liberty Support  / SevaSupport Ltd","SS00180420170816","780.00","TPP - Home Care","190365387","18/08/2017","Learning Disabilities Care Purchasing","LD Care Purchasing (Spot Placements)","R5420"
"Wolverhampton City Council","http://opendatacommunities.org/id/metropolitan-district-council/wolverhampton","714276","Speller Metcalfe Malvern Limited","CIN6949","1,113,853.20","Construction and Conversion","130185119","23/08/2017","-","Future Spaces","C1100"
"Wolverhampton City Council","http://opendatacommunities.org/id/metropolitan-district-council/wolverhampton","714279","Tusker","SIN295509","355.47","Services - Professional Fees","130182617","09/08/2017","Human Resources","Salary Sacrifice Schemes","R4400"
"Wolverhampton City Council","http://opendatacommunities.org/id/metropolitan-district-council/wolverhampton","714279","Tusker","SIN295509","-355.47","Services - Professional Fees","130182617","09/08/2017","Human Resources","Salary Sacrifice Schemes","R4400"
"Wolverhampton City Council","http://opendatacommunities.org/id/metropolitan-district-council/wolverhampton","714279","Tusker","SIN295509","121.90","Services - Professional Fees","130182617","09/08/2017","Human Resources","Salary Sacrifice Schemes","R4400"
"Wolverhampton City Council","http://opendatacommunities.org/id/metropolitan-district-council/wolverhampton","714279","Tusker","SIN295509","146.27","Services - Professional Fees","130182617","09/08/2017","Human Resources","Salary Sacrifice Schemes","R4400"
"Wolverhampton City Council","http://opendatacommunities.org/id/metropolitan-district-council/wolverhampton","714279","Tusker","SCR029134","-111.47","Services - Professional Fees","130182616","09/08/2017","Human Resources","Salary Sacrifice Schemes","R4400"
"Wolverhampton City Council","http://opendatacommunities.org/id/metropolitan-district-council/wolverhampton","714279","Tusker","SCR029134","-46.54","Services - Professional Fees","130182616","09/08/2017","Human Resources","Salary Sacrifice Schemes","R4400"
"Wolverhampton City Council","http://opendatacommunities.org/id/metropolitan-district-council/wolverhampton","714279","Tusker","SCR029134","-47.43","Services - Professional Fees","130182616","09/08/2017","Human Resources","Salary Sacrifice Schemes","R4400"
"Wolverhampton City Council","http://opendatacommunities.org/id/metropolitan-district-council/wolverhampton","714279","Tusker","SCR029134","-279.76","Services - Professional Fees","130182616","09/08/2017","Human Resources","Salary Sacrifice Schemes","R4400"
"Wolverhampton City Council","http://opendatacommunities.org/id/metropolitan-district-council/wolverhampton","714279","Tusker","SCR029134","279.76","Services - Professional Fees","130182616","09/08/2017","Human Resources","Salary Sacrifice Schemes","R4400"
"Wolverhampton City Council","http://opendatacommunities.org/id/metropolitan-district-council/wolverhampton","714279","Tusker","SCR029134","-92.90","Services - Professional Fees","130182616","09/08/2017","Human Resources","Salary Sacrifice Schemes","R4400"
"Wolverhampton City Council","http://opendatacommunities.org/id/metropolitan-district-council/wolverhampton","714279","Tusker","SIN295509","52.49","Services - Professional Fees","130182617","09/08/2017","Human Resources","Salary Sacrifice Schemes","R4400"
"Wolverhampton City Council","http://opendatacommunities.org/id/metropolitan-district-council/wolverhampton","714279","Tusker","SIN295509","59.19","Services - Professional Fees","130182617","09/08/2017","Human Resources","Salary Sacrifice Schemes","R4400"
"Wolverhampton City Council","http://opendatacommunities.org/id/metropolitan-district-council/wolverhampton","714279","Tusker","SIN298792","19,248.78","Services - Professional Fees","130182622","09/08/2017","Human Resources","Salary Sacrifice Schemes","R4400"
"Wolverhampton City Council","http://opendatacommunities.org/id/metropolitan-district-council/wolverhampton","714279","Tusker","SIN298792","-19,248.78","Services - Professional Fees","130182622","09/08/2017","Human Resources","Salary Sacrifice Schemes","R4400"
"Wolverhampton City Council","http://opendatacommunities.org/id/metropolitan-district-council/wolverhampton","714279","Tusker","SIN298792","6,502.87","Services - Professional Fees","130182622","09/08/2017","Human Resources","Salary Sacrifice Schemes","R4400"
"Wolverhampton City Council","http://opendatacommunities.org/id/metropolitan-district-council/wolverhampton","714279","Tusker","SIN298792","7,803.44","Services - Professional Fees","130182622","09/08/2017","Human Resources","Salary Sacrifice Schemes","R4400"
"Wolverhampton City Council","http://opendatacommunities.org/id/metropolitan-district-council/wolverhampton","714279","Tusker","SIN298792","3,008.83","Services - Professional Fees","130182622","09/08/2017","Human Resources","Salary Sacrifice Schemes","R4400"
"Wolverhampton City Council","http://opendatacommunities.org/id/metropolitan-district-council/wolverhampton","714279","Tusker","SIN298792","3,234.22","Services - Professional Fees","130182622","09/08/2017","Human Resources","Salary Sacrifice Schemes","R4400"
"Wolverhampton City Council","http://opendatacommunities.org/id/metropolitan-district-council/wolverhampton","714279","Tusker","SIN297280","80.00","Services - Professional Fees","130185139","23/08/2017","Human Resources","Salary Sacrifice Schemes","R4400"
"Wolverhampton City Council","http://opendatacommunities.org/id/metropolitan-district-council/wolverhampton","714279","Tusker","SIN297280","-80.00","Services - Professional Fees","130185139","23/08/2017","Human Resources","Salary Sacrifice Schemes","R4400"
"Wolverhampton City Council","http://opendatacommunities.org/id/metropolitan-district-council/wolverhampton","714279","Tusker","SIN297280","10.00","Services - Professional Fees","130185139","23/08/2017","Human Resources","Salary Sacrifice Schemes","R4400"
"Wolverhampton City Council","http://opendatacommunities.org/id/metropolitan-district-council/wolverhampton","714279","Tusker","SIN297280","70.00","Services - Professional Fees","130185139","23/08/2017","Human Resources","Salary Sacrifice Schemes","R4400"
"Wolverhampton City Council","http://opendatacommunities.org/id/metropolitan-district-council/wolverhampton","714279","Tusker","SIN296424","80.00","Services - Professional Fees","130182620","09/08/2017","Human Resources","Salary Sacrifice Schemes","R4400"
"Wolverhampton City Council","http://opendatacommunities.org/id/metropolitan-district-council/wolverhampton","714279","Tusker","SIN296424","-80.00","Services - Professional Fees","130182620","09/08/2017","Human Resources","Salary Sacrifice Schemes","R4400"
"Wolverhampton City Council","http://opendatacommunities.org/id/metropolitan-district-council/wolverhampton","714279","Tusker","SIN296424","10.00","Services - Professional Fees","130182620","09/08/2017","Human Resources","Salary Sacrifice Schemes","R4400"
"Wolverhampton City Council","http://opendatacommunities.org/id/metropolitan-district-council/wolverhampton","714279","Tusker","SIN296424","70.00","Services - Professional Fees","130182620","09/08/2017","Human Resources","Salary Sacrifice Schemes","R4400"
"Wolverhampton City Council","http://opendatacommunities.org/id/metropolitan-district-council/wolverhampton","714279","Tusker","SIN297970","355.47","Services - Professional Fees","130182621","09/08/2017","Human Resources","Salary Sacrifice Schemes","R4400"
"Wolverhampton City Council","http://opendatacommunities.org/id/metropolitan-district-council/wolverhampton","714279","Tusker","SIN297970","-355.47","Services - Professional Fees","130182621","09/08/2017","Human Resources","Salary Sacrifice Schemes","R4400"
"Wolverhampton City Council","http://opendatacommunities.org/id/metropolitan-district-council/wolverhampton","714279","Tusker","SIN297970","121.90","Services - Professional Fees","130182621","09/08/2017","Human Resources","Salary Sacrifice Schemes","R4400"
"Wolverhampton City Council","http://opendatacommunities.org/id/metropolitan-district-council/wolverhampton","714279","Tusker","SIN297970","146.27","Services - Professional Fees","130182621","09/08/2017","Human Resources","Salary Sacrifice Schemes","R4400"
"Wolverhampton City Council","http://opendatacommunities.org/id/metropolitan-district-council/wolverhampton","714279","Tusker","SIN297970","52.49","Services - Professional Fees","130182621","09/08/2017","Human Resources","Salary Sacrifice Schemes","R4400"
"Wolverhampton City Council","http://opendatacommunities.org/id/metropolitan-district-council/wolverhampton","714279","Tusker","SIN297970","59.19","Services - Professional Fees","130182621","09/08/2017","Human Resources","Salary Sacrifice Schemes","R4400"
"Wolverhampton City Council","http://opendatacommunities.org/id/metropolitan-district-council/wolverhampton","714279","Tusker","SIN298494","133.58","Services - Professional Fees","130185808","30/08/2017","Human Resources","Salary Sacrifice Schemes","R4400"
"Wolverhampton City Council","http://opendatacommunities.org/id/metropolitan-district-council/wolverhampton","714279","Tusker","SIN298494","257.06","Services - Professional Fees","130185808","30/08/2017","Human Resources","Salary Sacrifice Schemes","R4400"
"Wolverhampton City Council","http://opendatacommunities.org/id/metropolitan-district-council/wolverhampton","714279","Tusker","SIN298494","56.13","Services - Professional Fees","130185808","30/08/2017","Human Resources","Salary Sacrifice Schemes","R4400"
"Wolverhampton City Council","http://opendatacommunities.org/id/metropolitan-district-council/wolverhampton","714279","Tusker","SIN295937","40.00","Services - Professional Fees","130182618","09/08/2017","Human Resources","Salary Sacrifice Schemes","R4400"
"Wolverhampton City Council","http://opendatacommunities.org/id/metropolitan-district-council/wolverhampton","714279","Tusker","SIN295937","-40.00","Services - Professional Fees","130182618","09/08/2017","Human Resources","Salary Sacrifice Schemes","R4400"
"Wolverhampton City Council","http://opendatacommunities.org/id/metropolitan-district-council/wolverhampton","714279","Tusker","SIN296249","225.67","Services - Professional Fees","130182619","09/08/2017","Human Resources","Salary Sacrifice Schemes","R4400"
"Wolverhampton City Council","http://opendatacommunities.org/id/metropolitan-district-council/wolverhampton","714279","Tusker","SIN296249","-225.67","Services - Professional Fees","130182619","09/08/2017","Human Resources","Salary Sacrifice Schemes","R4400"
"Wolverhampton City Council","http://opendatacommunities.org/id/metropolitan-district-council/wolverhampton","714279","Tusker","SIN296249","69.18","Services - Professional Fees","130182619","09/08/2017","Human Resources","Salary Sacrifice Schemes","R4400"
"Wolverhampton City Council","http://opendatacommunities.org/id/metropolitan-district-council/wolverhampton","714279","Tusker","SIN296249","83.02","Services - Professional Fees","130182619","09/08/2017","Human Resources","Salary Sacrifice Schemes","R4400"
"Wolverhampton City Council","http://opendatacommunities.org/id/metropolitan-district-council/wolverhampton","714279","Tusker","SIN295937","10.00","Services - Professional Fees","130182618","09/08/2017","Human Resources","Salary Sacrifice Schemes","R4400"
"Wolverhampton City Council","http://opendatacommunities.org/id/metropolitan-district-council/wolverhampton","714279","Tusker","SIN295937","30.00","Services - Professional Fees","130182618","09/08/2017","Human Resources","Salary Sacrifice Schemes","R4400"
"Wolverhampton City Council","http://opendatacommunities.org/id/metropolitan-district-council/wolverhampton","714279","Tusker","SIN296249","37.04","Services - Professional Fees","130182619","09/08/2017","Human Resources","Salary Sacrifice Schemes","R4400"
"Wolverhampton City Council","http://opendatacommunities.org/id/metropolitan-district-council/wolverhampton","714279","Tusker","SIN296249","50.27","Services - Professional Fees","130182619","09/08/2017","Human Resources","Salary Sacrifice Schemes","R4400"
"Wolverhampton City Council","http://opendatacommunities.org/id/metropolitan-district-council/wolverhampton","714282","Cornerstone Barristers","133713","1,200.00","Services - Professional Fees","130183361","18/08/2017","Legal Services","Centralised External Legal Costs","R4400"
"Wolverhampton City Council","http://opendatacommunities.org/id/metropolitan-district-council/wolverhampton","714309","Excel Tuition Centre","EWLSCH0002","166.68","Services - Professional Fees","130185607","23/08/2017","Looked After Children","Pupil Premium","R4400"
"Wolverhampton City Council","http://opendatacommunities.org/id/metropolitan-district-council/wolverhampton","714314","Midcounties - Wellington Rd Nursery","P15021920170811","241.20","Client Allowances","190364654","16/08/2017","Looked After Children","Looked After Team 2","R6301"
"Wolverhampton City Council","http://opendatacommunities.org/id/metropolitan-district-council/wolverhampton","715688","Sterling Filtration Limited","122186","179.34","Equipment - Purchase","190365095","16/08/2017","Fleet Services","Fleet Management","R4000"
"Wolverhampton City Council","http://opendatacommunities.org/id/metropolitan-district-council/wolverhampton","715698","Buckinghamshire Healthcare NHS Trust","B-C032811a","659.03","TPP - Public Health Contracts","190366749","23/08/2017","Contracts","Sexual Health","R5060"
"Wolverhampton City Council","http://opendatacommunities.org/id/metropolitan-district-council/wolverhampton","715698","Buckinghamshire Healthcare NHS Trust","B-C033176a","151.03","TPP - Public Health Contracts","190366748","23/08/2017","Contracts","Sexual Health","R5060"
"Wolverhampton City Council","http://opendatacommunities.org/id/metropolitan-district-council/wolverhampton","715698","Buckinghamshire Healthcare NHS Trust","B-C031153a","149.89","TPP - Public Health Contracts","190366750","23/08/2017","Contracts","Sexual Health","R5060"
"Wolverhampton City Council","http://opendatacommunities.org/id/metropolitan-district-council/wolverhampton","715714","Prime Resolution Limited","SI - 70","770.00","Services - Professional Fees","130185120","18/08/2017","Standards and Vulnerable Pupils","SEN Special Education Admin","R4400"
"Wolverhampton City Council","http://opendatacommunities.org/id/metropolitan-district-council/wolverhampton","715778","Coopal Ltd","656","282.40","Equipment - R & M","130185333","30/08/2017","Leisure Services","Bert Williams Leisure Centre","R4003"
"Wolverhampton City Council","http://opendatacommunities.org/id/metropolitan-district-council/wolverhampton","715809","WM Property Associates Ltd","072014/109","1,395.00","Rent","130182913","11/08/2017","Child Protection","CIN/CP Social Work Unit - Area 3","R2200"
"Wolverhampton City Council","http://opendatacommunities.org/id/metropolitan-district-council/wolverhampton","715809","WM Property Associates Ltd","072014/105","1,350.00","Rent","130180144","11/08/2017","Child Protection","CIN/CP Social Work Unit - Area 3","R2200"
"Wolverhampton City Council","http://opendatacommunities.org/id/metropolitan-district-council/wolverhampton","715809","WM Property Associates Ltd","072014/115","1,350.00","Rent","130182334","11/08/2017","Child Protection","CIN/CP Social Work Unit - Area 3","R2200"
"Wolverhampton City Council","http://opendatacommunities.org/id/metropolitan-district-council/wolverhampton","715822","Arcadis LLP","75182768","0.02","External Professional Fees","130183521","30/08/2017","-","Black Country Growth Deal � Cultural Programme","C6002"
"Wolverhampton City Council","http://opendatacommunities.org/id/metropolitan-district-council/wolverhampton","715822","Arcadis LLP","75182768","4,324.96","External Professional Fees","130183521","30/08/2017","-","Black Country Growth Deal � Cultural Programme","C6002"
"Wolverhampton City Council","http://opendatacommunities.org/id/metropolitan-district-council/wolverhampton","715822","Arcadis LLP","75182768","0.03","External Professional Fees","130183521","30/08/2017","-","Black Country Growth Deal � Cultural Programme","C6002"
"Wolverhampton City Council","http://opendatacommunities.org/id/metropolitan-district-council/wolverhampton","715915","Alec Powell Magician","Harry Potter Theme Event 01/07/17","150.00","Marketing \ Non-staff advertising","130184534","16/08/2017","Strategic Organisation Development","Global Budgets","R4317"
"Wolverhampton City Council","http://opendatacommunities.org/id/metropolitan-district-council/wolverhampton","715923","Wattrus Group Limited","18608","2,616.30","Construction and Conversion","130184788","16/08/2017","-","Primary Expansion Programme","C1100"
"Wolverhampton City Council","http://opendatacommunities.org/id/metropolitan-district-council/wolverhampton","715951","Kate Tilley","W-Q-40","75.00","Services - Professional Fees","130183364","30/08/2017","Visitor Economy","Art Galleries - Schools Art SLA Service","R4400"
"Wolverhampton City Council","http://opendatacommunities.org/id/metropolitan-district-council/wolverhampton","715951","Kate Tilley","W-Q-41","137.50","Services - Professional Fees","130183365","30/08/2017","Visitor Economy","Art Galleries - Schools Art SLA Service","R4400"
"Wolverhampton City Council","http://opendatacommunities.org/id/metropolitan-district-council/wolverhampton","715951","Kate Tilley","W-Q-38","75.00","Services - Professional Fees","130183363","30/08/2017","Visitor Economy","Art Galleries - Schools Art SLA Service","R4400"
"Wolverhampton City Council","http://opendatacommunities.org/id/metropolitan-district-council/wolverhampton","715951","Kate Tilley","W-Q-37","75.00","Services - Professional Fees","130183362","30/08/2017","Visitor Economy","Art Galleries - Schools Art SLA Service","R4400"
"Wolverhampton City Council","http://opendatacommunities.org/id/metropolitan-district-council/wolverhampton","715951","Kate Tilley","W-Q-42","75.00","Services - Professional Fees","130183366","30/08/2017","Visitor Economy","Art Galleries - Schools Art SLA Service","R4400"
"Wolverhampton City Council","http://opendatacommunities.org/id/metropolitan-district-council/wolverhampton","715994","Able 2 Occupational Therapy Serv Ltd","16560","1,000.00","Agency Staff","130183985","30/08/2017","Independent Living Service","Independent Living Service","R1100"
"Wolverhampton City Council","http://opendatacommunities.org/id/metropolitan-district-council/wolverhampton","715994","Able 2 Occupational Therapy Serv Ltd","16560","-1,000.00","Agency Staff","130183985","30/08/2017","Independent Living Service","Independent Living Service","R1100"
"Wolverhampton City Council","http://opendatacommunities.org/id/metropolitan-district-council/wolverhampton","715994","Able 2 Occupational Therapy Serv Ltd","16560","1,000.00","Agency Staff","130183985","30/08/2017","Independent Living Service","Independent Living Service","R1100"
"Wolverhampton City Council","http://opendatacommunities.org/id/metropolitan-district-council/wolverhampton","716001","Sigma Surveying Services Limited","00001196/MAS","14,800.00","Services - Professional Fees","130183986","25/08/2017","Commercial Services","Corporate Procurement Unit","R4400"
"Wolverhampton City Council","http://opendatacommunities.org/id/metropolitan-district-council/wolverhampton","716012","Bilston Town Community FC","4032","4,000.00","Marketing \ Non-staff advertising","130182901","16/08/2017","Headstart","Headstart Hubs","R4317"
"Wolverhampton City Council","http://opendatacommunities.org/id/metropolitan-district-council/wolverhampton","716061","Victoria Bithell","0098/2017 - 18","1,500.00","Services - Professional Fees","130181713","16/08/2017","Visitor Economy","Pop Gallery Space","R4400"
"Wolverhampton City Council","http://opendatacommunities.org/id/metropolitan-district-council/wolverhampton","716066","Dell Software International Limited","7402372974","75,358.00","Plant, Equipment, Machinery & Computer Hardware","130181274","02/08/2017","-","ICT General Programme","C3000"
"Wolverhampton City Council","http://opendatacommunities.org/id/metropolitan-district-council/wolverhampton","716083","J. Harper & Sons (Leominster) Ltd","IN022970","43,299.39","Construction and Conversion","130184535","16/08/2017","-","Sports Investment Strategy","C1100"
"Wolverhampton City Council","http://opendatacommunities.org/id/metropolitan-district-council/wolverhampton","716086","Mike Pardo","MastersonG206a","133.52","Services - Professional Fees","190366657","23/08/2017","Child Protection","Head of Service - CINCP","R4400"
"Wolverhampton City Council","http://opendatacommunities.org/id/metropolitan-district-council/wolverhampton","716106","Active Assistance","12460720170815","1,232.91","TPP - Home Care","190365146","16/08/2017","Physical Disabilities Care Purchasing","PD Care Purchasing (Spot Placements)","R5420"
"Wolverhampton City Council","http://opendatacommunities.org/id/metropolitan-district-council/wolverhampton","716106","Active Assistance","12460720170815","136.99","TPP - Home Care","190365146","16/08/2017","Physical Disabilities Care Purchasing","PD Care Purchasing (Spot Placements)","R5420"
"Wolverhampton City Council","http://opendatacommunities.org/id/metropolitan-district-council/wolverhampton","716106","Active Assistance","12443720170808","1,232.91","TPP - Home Care","190363860","09/08/2017","Physical Disabilities Care Purchasing","PD Care Purchasing (Spot Placements)","R5420"
"Wolverhampton City Council","http://opendatacommunities.org/id/metropolitan-district-council/wolverhampton","716106","Active Assistance","12443720170808","136.99","TPP - Home Care","190363860","09/08/2017","Physical Disabilities Care Purchasing","PD Care Purchasing (Spot Placements)","R5420"
"Wolverhampton City Council","http://opendatacommunities.org/id/metropolitan-district-council/wolverhampton","716106","Active Assistance","12416120170803","1,232.91","TPP - Home Care","190363132","04/08/2017","Physical Disabilities Care Purchasing","PD Care Purchasing (Spot Placements)","R5420"
"Wolverhampton City Council","http://opendatacommunities.org/id/metropolitan-district-council/wolverhampton","716106","Active Assistance","12416120170803","136.99","TPP - Home Care","190363132","04/08/2017","Physical Disabilities Care Purchasing","PD Care Purchasing (Spot Placements)","R5420"
"Wolverhampton City Council","http://opendatacommunities.org/id/metropolitan-district-council/wolverhampton","716106","Active Assistance","12477220170821","1,232.91","TPP - Home Care","190366720","23/08/2017","Physical Disabilities Care Purchasing","PD Care Purchasing (Spot Placements)","R5420"
"Wolverhampton City Council","http://opendatacommunities.org/id/metropolitan-district-council/wolverhampton","716106","Active Assistance","12477220170821","136.99","TPP - Home Care","190366720","23/08/2017","Physical Disabilities Care Purchasing","PD Care Purchasing (Spot Placements)","R5420"
"Wolverhampton City Council","http://opendatacommunities.org/id/metropolitan-district-council/wolverhampton","716106","Active Assistance","12505120170829","1,232.91","TPP - Home Care","190368795","30/08/2017","Physical Disabilities Care Purchasing","PD Care Purchasing (Spot Placements)","R5420"
"Wolverhampton City Council","http://opendatacommunities.org/id/metropolitan-district-council/wolverhampton","716106","Active Assistance","12505120170829","136.99","TPP - Home Care","190368795","30/08/2017","Physical Disabilities Care Purchasing","PD Care Purchasing (Spot Placements)","R5420"
"Wolverhampton City Council","http://opendatacommunities.org/id/metropolitan-district-council/wolverhampton","716106","Active Assistance","12400620170731","1,232.91","TPP - Home Care","190362089","02/08/2017","Physical Disabilities Care Purchasing","PD Care Purchasing (Spot Placements)","R5420"
"Wolverhampton City Council","http://opendatacommunities.org/id/metropolitan-district-council/wolverhampton","716106","Active Assistance","12400620170731","136.99","TPP - Home Care","190362089","02/08/2017","Physical Disabilities Care Purchasing","PD Care Purchasing (Spot Placements)","R5420"
"Wolverhampton City Council","http://opendatacommunities.org/id/metropolitan-district-council/wolverhampton","716125","Autostart Midlands Limited","079093","121.00","Equipment - Purchase","190362970","04/08/2017","Fleet Services","Fleet Management","R4000"
"Wolverhampton City Council","http://opendatacommunities.org/id/metropolitan-district-council/wolverhampton","716202","Miss Sarah Fahy","AS/LGA007922","500.00","Services - Professional Fees","130182485","23/08/2017","Independent Living Service","Adaptations Team","R4400"
"Wolverhampton City Council","http://opendatacommunities.org/id/metropolitan-district-council/wolverhampton","716202","Miss Sarah Fahy","170332","500.00","Services - Professional Fees","130182172","18/08/2017","Child Protection","Childrens with Disabilities Team","R4400"
"Wolverhampton City Council","http://opendatacommunities.org/id/metropolitan-district-council/wolverhampton","716207","ASA West Midland Region","SIN196711","214.50","Materials for resale","130181714","16/08/2017","Leisure Services","Bert Williams Leisure Centre","R4008"
"Wolverhampton City Council","http://opendatacommunities.org/id/metropolitan-district-council/wolverhampton","716207","ASA West Midland Region","SIN196711","8.00","Materials for resale","130181714","16/08/2017","Leisure Services","Bert Williams Leisure Centre","R4008"
"Wolverhampton City Council","http://opendatacommunities.org/id/metropolitan-district-council/wolverhampton","716224","Homers Travel","225","1,482.90","Client Transport","130182487","02/08/2017","School Planning & Resources","Special - Transport","R3042"
"Wolverhampton City Council","http://opendatacommunities.org/id/metropolitan-district-council/wolverhampton","716224","Homers Travel","224","1,372.50","Client Transport","130182486","02/08/2017","School Planning & Resources","Special - Transport","R3042"
"Wolverhampton City Council","http://opendatacommunities.org/id/metropolitan-district-council/wolverhampton","716227","Ascentis Awarding Body","45250","5,025.91","Exam Expenses (Non-Employee)","130182902","16/08/2017","Adult Education","Foundation Studies Delivery Area","R4630"
"Wolverhampton City Council","http://opendatacommunities.org/id/metropolitan-district-council/wolverhampton","716227","Ascentis Awarding Body","45250","1,396.09","Exam Expenses (Non-Employee)","130182902","16/08/2017","Adult Education","Discretionary Fund","R4630"
"Wolverhampton City Council","http://opendatacommunities.org/id/metropolitan-district-council/wolverhampton","716227","Ascentis Awarding Body","46135","33.00","Exam Expenses (Non-Employee)","130183522","18/08/2017","Adult Education","Foundation Studies Delivery Area","R4630"
"Wolverhampton City Council","http://opendatacommunities.org/id/metropolitan-district-council/wolverhampton","716246","One 4 You Services Ltd","6502","2,406.96","Client Transport","130182626","23/08/2017","School Planning & Resources","Special - Transport","R3042"
"Wolverhampton City Council","http://opendatacommunities.org/id/metropolitan-district-council/wolverhampton","716246","One 4 You Services Ltd","6501","780.00","Client Transport","130182625","23/08/2017","School Planning & Resources","Special - Transport","R3042"
"Wolverhampton City Council","http://opendatacommunities.org/id/metropolitan-district-council/wolverhampton","716246","One 4 You Services Ltd","6503","1,355.75","Client Transport","130182627","23/08/2017","School Planning & Resources","Special - Transport","R3042"
"Wolverhampton City Council","http://opendatacommunities.org/id/metropolitan-district-council/wolverhampton","716246","One 4 You Services Ltd","6504","1,190.00","Client Transport","130182628","23/08/2017","School Planning & Resources","Special - Transport","R3042"
"Wolverhampton City Council","http://opendatacommunities.org/id/metropolitan-district-council/wolverhampton","716354","Mangar International Ltd","0000176922","190.00","Equipment - Purchase","130183016","23/08/2017","Independent Living Service","Independent Living Service","R4000"
"Wolverhampton City Council","http://opendatacommunities.org/id/metropolitan-district-council/wolverhampton","716354","Mangar International Ltd","0000176922","10.21","Equipment - Purchase","130183016","23/08/2017","Independent Living Service","Independent Living Service","R4000"
"Wolverhampton City Council","http://opendatacommunities.org/id/metropolitan-district-council/wolverhampton","716362","LHi Group Ltd/Lawrence Harvey","111941","10,400.00","Agency Staff","130179296","02/08/2017","Strategic Finance","Agresso System Support","R1100"
"Wolverhampton City Council","http://opendatacommunities.org/id/metropolitan-district-council/wolverhampton","716362","LHi Group Ltd/Lawrence Harvey","112241","9,750.00","Agency Staff","130183367","30/08/2017","Strategic Finance","Agresso System Support","R1100"
"Wolverhampton City Council","http://opendatacommunities.org/id/metropolitan-district-council/wolverhampton","716362","LHi Group Ltd/Lawrence Harvey","111961","2,000.00","Agency Staff","130179297","02/08/2017","Strategic Finance","Agresso System Support","R1100"
"Wolverhampton City Council","http://opendatacommunities.org/id/metropolitan-district-council/wolverhampton","716362","LHi Group Ltd/Lawrence Harvey","112282","3,000.00","Agency Staff","130183524","30/08/2017","Strategic Finance","Agresso System Support","R1100"
"Wolverhampton City Council","http://opendatacommunities.org/id/metropolitan-district-council/wolverhampton","716362","LHi Group Ltd/Lawrence Harvey","112281","6,650.00","Agency Staff","130183523","30/08/2017","Strategic Finance","Agresso System Support","R1100"
"Wolverhampton City Council","http://opendatacommunities.org/id/metropolitan-district-council/wolverhampton","716368","J P Landscapes & Construction Ltd","2407","6,251.20","R&M - Departmental planned (external)","130182317","02/08/2017","Environmental Maintenance","Parks / Open Spaces - Repairs & Maintenance","R2001"
"Wolverhampton City Council","http://opendatacommunities.org/id/metropolitan-district-council/wolverhampton","716368","J P Landscapes & Construction Ltd","2408","4,582.00","R&M - Departmental planned (external)","130182318","02/08/2017","Environmental Maintenance","Parks / Open Spaces - Repairs & Maintenance","R2001"
"Wolverhampton City Council","http://opendatacommunities.org/id/metropolitan-district-council/wolverhampton","716368","J P Landscapes & Construction Ltd","2409","3,619.00","R&M - Departmental planned (external)","130182629","09/08/2017","City Development","Strategic Disposals","R2001"
"Wolverhampton City Council","http://opendatacommunities.org/id/metropolitan-district-council/wolverhampton","716369","Armstrong Bell Ltd","0022862","189.91","Comms - Telephone Call charges","130181275","09/08/2017","Skills","Connexions Contract","R4505"
"Wolverhampton City Council","http://opendatacommunities.org/id/metropolitan-district-council/wolverhampton","716375","Ubiqus UK Ltd","659 551","1,184.96","Services - Professional Fees","130183017","04/08/2017","Legal Services","Centralised External Legal Costs","R4400"
"Wolverhampton City Council","http://opendatacommunities.org/id/metropolitan-district-council/wolverhampton","716392","Virgin Media Ltd","039003802/001/0717","6.47","Comms - Telephone Rental","130180808","02/08/2017","Catering","Primary Schools Catering","R4504"
"Wolverhampton City Council","http://opendatacommunities.org/id/metropolitan-district-council/wolverhampton","716392","Virgin Media Ltd","035824401/001/0317","48.00","Comms - Telephone Call charges","130162894","02/08/2017","Operation & Maintenance of Existing Network","Traffic Signals","R4505"
"Wolverhampton City Council","http://opendatacommunities.org/id/metropolitan-district-council/wolverhampton","716397","Bridge Fleet Solutions Ltd","49024","570.95","Equipment - Purchase","130184795","23/08/2017","Environmental Maintenance","Ground Maintenance West","R4000"
"Wolverhampton City Council","http://opendatacommunities.org/id/metropolitan-district-council/wolverhampton","716432","Sandhills Ltd","029","871.20","TPP - Alternative Provision of Education","130184252","25/08/2017","Standards and Vulnerable Pupils","SEN Education OOC","R5037"
"Wolverhampton City Council","http://opendatacommunities.org/id/metropolitan-district-council/wolverhampton","716551","Changing Minds Ltd","1718109","256.20","Direct Work With Children","130186271","30/08/2017","Looked After Children","Adoption Support Fund","R6310"
"Wolverhampton City Council","http://opendatacommunities.org/id/metropolitan-district-council/wolverhampton","716551","Changing Minds Ltd","1718109","-256.20","Direct Work With Children","130186271","30/08/2017","Looked After Children","Adoption Support Fund","R6310"
"Wolverhampton City Council","http://opendatacommunities.org/id/metropolitan-district-council/wolverhampton","716551","Changing Minds Ltd","1718109","76.20","Direct Work With Children","130186271","30/08/2017","Looked After Children","Adoption Support Fund","R6310"
"Wolverhampton City Council","http://opendatacommunities.org/id/metropolitan-district-council/wolverhampton","716551","Changing Minds Ltd","1718109","180.00","Direct Work With Children","130186271","30/08/2017","Looked After Children","Adoption Support Fund","R6310"
"Wolverhampton City Council","http://opendatacommunities.org/id/metropolitan-district-council/wolverhampton","716552","Geeky Creative Ltd","748","240.00","Subscriptions","130170887","04/08/2017","Business Continuity & Emergency Planning","Business Continuity & Emergency Planning","R4701"
"Wolverhampton City Council","http://opendatacommunities.org/id/metropolitan-district-council/wolverhampton","716552","Geeky Creative Ltd","752","240.00","Subscriptions","130176598","04/08/2017","Business Continuity & Emergency Planning","Business Continuity & Emergency Planning","R4701"
"Wolverhampton City Council","http://opendatacommunities.org/id/metropolitan-district-council/wolverhampton","716571","E-Recruiter","647","2,580.00","Agency Staff","130180810","09/08/2017","Strategic Finance","Agresso System Support","R1100"
"Wolverhampton City Council","http://opendatacommunities.org/id/metropolitan-district-council/wolverhampton","716571","E-Recruiter","683","3,225.00","Agency Staff","130182488","23/08/2017","Strategic Finance","Agresso System Support","R1100"
"Wolverhampton City Council","http://opendatacommunities.org/id/metropolitan-district-council/wolverhampton","716571","E-Recruiter","704","3,225.00","Agency Staff","130183525","30/08/2017","Strategic Finance","Agresso System Support","R1100"
"Wolverhampton City Council","http://opendatacommunities.org/id/metropolitan-district-council/wolverhampton","716571","E-Recruiter","666","1,935.00","Agency Staff","130181974","16/08/2017","Strategic Finance","Agresso System Support","R1100"
"Wolverhampton City Council","http://opendatacommunities.org/id/metropolitan-district-council/wolverhampton","716584","Atkins Limited","17013282","31,958.00","Services - Professional Fees","130185336","18/08/2017","Commercial Services","Corporate Procurement Unit","R4400"
"Wolverhampton City Council","http://opendatacommunities.org/id/metropolitan-district-council/wolverhampton","716584","Atkins Limited","17013273","9,021.48","Construction and Conversion","130185335","18/08/2017","-","Future Spaces","C1100"
"Wolverhampton City Council","http://opendatacommunities.org/id/metropolitan-district-council/wolverhampton","716584","Atkins Limited","17013098","3,043.80","Construction and Conversion","130181276","11/08/2017","-","Future Spaces","C1100"
"Wolverhampton City Council","http://opendatacommunities.org/id/metropolitan-district-council/wolverhampton","716588","Magna large Print Books","I100453","302.20","Books","130180121","04/08/2017","Strategic Organisation Development","Global Budgets","R4309"
"Wolverhampton City Council","http://opendatacommunities.org/id/metropolitan-district-council/wolverhampton","716588","Magna large Print Books","I100942","283.31","Books","130183526","30/08/2017","Strategic Organisation Development","Global Budgets","R4309"
"Wolverhampton City Council","http://opendatacommunities.org/id/metropolitan-district-council/wolverhampton","716588","Magna large Print Books","I100454","302.20","Books","130180122","04/08/2017","Strategic Organisation Development","Global Budgets","R4309"
"Wolverhampton City Council","http://opendatacommunities.org/id/metropolitan-district-council/wolverhampton","716588","Magna large Print Books","I100943","18.89","Books","130183527","30/08/2017","Strategic Organisation Development","Global Budgets","R4309"
"Wolverhampton City Council","http://opendatacommunities.org/id/metropolitan-district-council/wolverhampton","716588","Magna large Print Books","I100452","288.71","Books","130180120","04/08/2017","Strategic Organisation Development","Global Budgets","R4309"
"Wolverhampton City Council","http://opendatacommunities.org/id/metropolitan-district-council/wolverhampton","716588","Magna large Print Books","I100451","302.20","Books","130180119","04/08/2017","Strategic Organisation Development","Global Budgets","R4309"
"Wolverhampton City Council","http://opendatacommunities.org/id/metropolitan-district-council/wolverhampton","716594","Burke Bros Recovery","G22697","70.00","Services - Professional Fees","190363760","09/08/2017","Fleet Services","Fleet Management","R4400"
"Wolverhampton City Council","http://opendatacommunities.org/id/metropolitan-district-council/wolverhampton","716594","Burke Bros Recovery","G23275","70.00","Services - Professional Fees","190368333","30/08/2017","Fleet Services","Fleet Management","R4400"
"Wolverhampton City Council","http://opendatacommunities.org/id/metropolitan-district-council/wolverhampton","716594","Burke Bros Recovery","G23076","70.00","Services - Professional Fees","190368332","30/08/2017","Fleet Services","Fleet Management","R4400"
"Wolverhampton City Council","http://opendatacommunities.org/id/metropolitan-district-council/wolverhampton","716594","Burke Bros Recovery","G23000","70.00","Services - Professional Fees","190363762","09/08/2017","Fleet Services","Fleet Management","R4400"
"Wolverhampton City Council","http://opendatacommunities.org/id/metropolitan-district-council/wolverhampton","716594","Burke Bros Recovery","G22741","70.00","Services - Professional Fees","190363761","09/08/2017","Fleet Services","Fleet Management","R4400"
"Wolverhampton City Council","http://opendatacommunities.org/id/metropolitan-district-council/wolverhampton","716663","Terry Brayshaw","04","610.00","Services - Professional Fees","130182173","02/08/2017","Standards and Vulnerable Pupils","Music Support Team","R4400"
"Wolverhampton City Council","http://opendatacommunities.org/id/metropolitan-district-council/wolverhampton","716681","Julia Foster","WAGJUL17","2,250.00","Services - Professional Fees","130182489","23/08/2017","Visitor Economy","Education And Access","R4400"
"Wolverhampton City Council","http://opendatacommunities.org/id/metropolitan-district-council/wolverhampton","716697","Npower Leeds","7507152","101.20","Electricity","190365004","16/08/2017","Corporate Asset Management","Central Utilities to Recharge","R2100"
"Wolverhampton City Council","http://opendatacommunities.org/id/metropolitan-district-council/wolverhampton","716697","Npower Leeds","79773612990_31-07-17","19.71","Electricity","190365003","16/08/2017","Corporate Asset Management","Central Utilities to Recharge","R2100"
"Wolverhampton City Council","http://opendatacommunities.org/id/metropolitan-district-council/wolverhampton","716767","KINGSTON - Northern House Academy","Northern House PRU invoice no NHAT 0239 March (FS)","1,583.40","Grant Payments","190364885","16/08/2017","Schools","PRU Viability Contingency","R4700"
"Wolverhampton City Council","http://opendatacommunities.org/id/metropolitan-district-council/wolverhampton","716767","KINGSTON - Northern House Academy","Northern House PRU invoice no NHAT 0264 May (FS)","2,507.05","Grant Payments","190364887","16/08/2017","Schools","PRU Viability Contingency","R4700"
"Wolverhampton City Council","http://opendatacommunities.org/id/metropolitan-district-council/wolverhampton","716767","KINGSTON - Northern House Academy","Northern House PRU invoice no NHAT 0246 April (FS)","1,319.50","Grant Payments","190364886","16/08/2017","Schools","PRU Viability Contingency","R4700"
"Wolverhampton City Council","http://opendatacommunities.org/id/metropolitan-district-council/wolverhampton","716767","KINGSTON - Northern House Academy","Northern House PRU invoice no NHAT 0316 June (FS)","2,639.00","Grant Payments","190364888","16/08/2017","Schools","PRU Viability Contingency","R4700"
"Wolverhampton City Council","http://opendatacommunities.org/id/metropolitan-district-council/wolverhampton","716776","NHS Supply Chain","1018065824","874.17","TPP - Public Health Contracts","130180307","02/08/2017","Contracts","Healthy Start to Life","R5060"
"Wolverhampton City Council","http://opendatacommunities.org/id/metropolitan-district-council/wolverhampton","716776","NHS Supply Chain","1018069644","275.67","TPP - Public Health Contracts","130181278","09/08/2017","Contracts","Healthy Start to Life","R5060"
"Wolverhampton City Council","http://opendatacommunities.org/id/metropolitan-district-council/wolverhampton","716800","Next Control Systems","T 1901","1,638.00","R&M - Departmental planned (external)","130182490","18/08/2017","Bereavement Services","Coroners","R2001"
"Wolverhampton City Council","http://opendatacommunities.org/id/metropolitan-district-council/wolverhampton","716806","Peak Activity Services Ltd","2521","24,480.00","TPP - Alternative Provision of Education","130185337","30/08/2017","Standards and Vulnerable Pupils","SEN Education OOC","R5037"
"Wolverhampton City Council","http://opendatacommunities.org/id/metropolitan-district-council/wolverhampton","716806","Peak Activity Services Ltd","2523","20,160.00","TPP - Alternative Provision of Education","130185338","30/08/2017","Standards and Vulnerable Pupils","SEN Education OOC","R5037"
"Wolverhampton City Council","http://opendatacommunities.org/id/metropolitan-district-council/wolverhampton","716809","SF Group","246027","124.43","Agency Staff","130179509","02/08/2017","The Hub","Payroll/HR","R1100"
"Wolverhampton City Council","http://opendatacommunities.org/id/metropolitan-district-council/wolverhampton","716809","SF Group","246660","563.51","Agency Staff","130180644","09/08/2017","The Hub","Payroll/HR","R1100"
"Wolverhampton City Council","http://opendatacommunities.org/id/metropolitan-district-council/wolverhampton","716809","SF Group","247850","613.83","Agency Staff","130183529","30/08/2017","The Hub","Payroll/HR","R1100"
"Wolverhampton City Council","http://opendatacommunities.org/id/metropolitan-district-council/wolverhampton","716809","SF Group","246834","613.85","Agency Staff","130181462","16/08/2017","The Hub","Payroll/HR","R1100"
"Wolverhampton City Council","http://opendatacommunities.org/id/metropolitan-district-council/wolverhampton","716809","SF Group","246834","-613.85","Agency Staff","130181462","16/08/2017","The Hub","Payroll/HR","R1100"
"Wolverhampton City Council","http://opendatacommunities.org/id/metropolitan-district-council/wolverhampton","716809","SF Group","246834","613.83","Agency Staff","130181462","16/08/2017","The Hub","Payroll/HR","R1100"
"Wolverhampton City Council","http://opendatacommunities.org/id/metropolitan-district-council/wolverhampton","716809","SF Group","246694","613.83","Agency Staff","130180645","09/08/2017","The Hub","Payroll/HR","R1100"
"Wolverhampton City Council","http://opendatacommunities.org/id/metropolitan-district-council/wolverhampton","716809","SF Group","247825","121.84","Agency Staff","130183528","30/08/2017","The Hub","Payroll/HR","R1100"
"Wolverhampton City Council","http://opendatacommunities.org/id/metropolitan-district-council/wolverhampton","716809","SF Group","246287","613.83","Agency Staff","130179701","02/08/2017","The Hub","Payroll/HR","R1100"
"Wolverhampton City Council","http://opendatacommunities.org/id/metropolitan-district-council/wolverhampton","716809","SF Group","247439","555.90","Agency Staff","130182492","23/08/2017","The Hub","Payroll/HR","R1100"
"Wolverhampton City Council","http://opendatacommunities.org/id/metropolitan-district-council/wolverhampton","716809","SF Group","244239","613.83","Agency Staff","130174406","16/08/2017","The Hub","Payroll/HR","R1100"
"Wolverhampton City Council","http://opendatacommunities.org/id/metropolitan-district-council/wolverhampton","716809","SF Group","245467","563.51","Agency Staff","130177186","16/08/2017","The Hub","Payroll/HR","R1100"
"Wolverhampton City Council","http://opendatacommunities.org/id/metropolitan-district-council/wolverhampton","716809","SF Group","246440","364.98","Agency Staff","130180643","09/08/2017","The Hub","Payroll/HR","R1100"
"Wolverhampton City Council","http://opendatacommunities.org/id/metropolitan-district-council/wolverhampton","716809","SF Group","247220","613.83","Agency Staff","130182491","23/08/2017","The Hub","Payroll/HR","R1100"
"Wolverhampton City Council","http://opendatacommunities.org/id/metropolitan-district-council/wolverhampton","716809","SF Group","247073","613.85","Agency Staff","130181464","16/08/2017","The Hub","Payroll/HR","R1100"
"Wolverhampton City Council","http://opendatacommunities.org/id/metropolitan-district-council/wolverhampton","716809","SF Group","247073","-613.85","Agency Staff","130181464","16/08/2017","The Hub","Payroll/HR","R1100"
"Wolverhampton City Council","http://opendatacommunities.org/id/metropolitan-district-council/wolverhampton","716809","SF Group","247073","613.83","Agency Staff","130181464","16/08/2017","The Hub","Payroll/HR","R1100"
"Wolverhampton City Council","http://opendatacommunities.org/id/metropolitan-district-council/wolverhampton","716809","SF Group","241634","613.83","Agency Staff","130168050","02/08/2017","The Hub","Payroll/HR","R1100"
"Wolverhampton City Council","http://opendatacommunities.org/id/metropolitan-district-council/wolverhampton","716809","SF Group","247466","613.83","Agency Staff","130182493","23/08/2017","The Hub","Payroll/HR","R1100"
"Wolverhampton City Council","http://opendatacommunities.org/id/metropolitan-district-council/wolverhampton","716809","SF Group","247612","489.41","Agency Staff","130183368","30/08/2017","The Hub","Payroll/HR","R1100"
"Wolverhampton City Council","http://opendatacommunities.org/id/metropolitan-district-council/wolverhampton","716809","SF Group","246252","114.23","Agency Staff","130179510","16/08/2017","The Hub","Payroll/HR","R1100"
"Wolverhampton City Council","http://opendatacommunities.org/id/metropolitan-district-council/wolverhampton","716809","SF Group","247045","373.14","Agency Staff","130181463","16/08/2017","The Hub","Payroll/HR","R1100"
"Wolverhampton City Council","http://opendatacommunities.org/id/metropolitan-district-council/wolverhampton","716809","SF Group","247045","76.15","Agency Staff","130181463","16/08/2017","The Hub","Payroll/HR","R1100"
"Wolverhampton City Council","http://opendatacommunities.org/id/metropolitan-district-council/wolverhampton","716878","East Cheshire NHS Trust","17497385a","248.49","TPP - Public Health Contracts","190366756","23/08/2017","Contracts","Sexual Health","R5060"
"Wolverhampton City Council","http://opendatacommunities.org/id/metropolitan-district-council/wolverhampton","716878","East Cheshire NHS Trust","17497324a","139.11","TPP - Public Health Contracts","190366755","23/08/2017","Contracts","Sexual Health","R5060"
"Wolverhampton City Council","http://opendatacommunities.org/id/metropolitan-district-council/wolverhampton","716914","Omari Project (ACCI)","5186/0820170804","234.00","TPP - Home Care","190363380","09/08/2017","Mental Health Assesment & Care Management","MH Care Purchasing (Spot Placements)","R5420"
"Wolverhampton City Council","http://opendatacommunities.org/id/metropolitan-district-council/wolverhampton","716914","Omari Project (ACCI)","5184/0820170804","364.00","TPP - Home Care","190363378","09/08/2017","Mental Health Assesment & Care Management","MH Care Purchasing (Spot Placements)","R5420"
"Wolverhampton City Council","http://opendatacommunities.org/id/metropolitan-district-council/wolverhampton","716914","Omari Project (ACCI)","ACCI/5190/02","2,083.33","TPP - Social Care Support Services","130183990","30/08/2017","Early Intervention","Transformation Challenge Award","R5501"
"Wolverhampton City Council","http://opendatacommunities.org/id/metropolitan-district-council/wolverhampton","716914","Omari Project (ACCI)","5182/0820170804","260.00","TPP - Home Care","190363376","09/08/2017","Mental Health Assesment & Care Management","MH Care Purchasing (Spot Placements)","R5420"
"Wolverhampton City Council","http://opendatacommunities.org/id/metropolitan-district-council/wolverhampton","716914","Omari Project (ACCI)","5182/0820170804","260.00","TPP - Home Care","190363376","09/08/2017","Mental Health Assesment & Care Management","MH Care Purchasing (Spot Placements)","R5420"
"Wolverhampton City Council","http://opendatacommunities.org/id/metropolitan-district-council/wolverhampton","716914","Omari Project (ACCI)","5182/0820170804","260.00","TPP - Home Care","190363376","09/08/2017","Mental Health Assesment & Care Management","MH Care Purchasing (Spot Placements)","R5420"
"Wolverhampton City Council","http://opendatacommunities.org/id/metropolitan-district-council/wolverhampton","716914","Omari Project (ACCI)","5182/0820170804","260.00","TPP - Home Care","190363376","09/08/2017","Mental Health Assesment & Care Management","MH Care Purchasing (Spot Placements)","R5420"
"Wolverhampton City Council","http://opendatacommunities.org/id/metropolitan-district-council/wolverhampton","716914","Omari Project (ACCI)","5182/0820170804","260.00","TPP - Home Care","190363376","09/08/2017","Mental Health Assesment & Care Management","MH Care Purchasing (Spot Placements)","R5420"
"Wolverhampton City Council","http://opendatacommunities.org/id/metropolitan-district-council/wolverhampton","716914","Omari Project (ACCI)","5182/0820170804","260.00","TPP - Home Care","190363376","09/08/2017","Mental Health Assesment & Care Management","MH Care Purchasing (Spot Placements)","R5420"
"Wolverhampton City Council","http://opendatacommunities.org/id/metropolitan-district-council/wolverhampton","716914","Omari Project (ACCI)","5185/0820170804","260.00","TPP - Home Care","190363379","09/08/2017","Mental Health Assesment & Care Management","MH Care Purchasing (Spot Placements)","R5420"
"Wolverhampton City Council","http://opendatacommunities.org/id/metropolitan-district-council/wolverhampton","716914","Omari Project (ACCI)","5185/0820170804","260.00","TPP - Home Care","190363379","09/08/2017","Mental Health Assesment & Care Management","MH Care Purchasing (Spot Placements)","R5420"
"Wolverhampton City Council","http://opendatacommunities.org/id/metropolitan-district-council/wolverhampton","716914","Omari Project (ACCI)","ACCI/5189/02","2,083.33","TPP - Social Care Support Services","130183989","25/08/2017","Early Intervention","Transformation Challenge Award","R5501"
"Wolverhampton City Council","http://opendatacommunities.org/id/metropolitan-district-council/wolverhampton","716914","Omari Project (ACCI)","5187/0820170804","208.00","TPP - Home Care","190363381","09/08/2017","Mental Health Assesment & Care Management","MH Care Purchasing (Spot Placements)","R5420"
"Wolverhampton City Council","http://opendatacommunities.org/id/metropolitan-district-council/wolverhampton","716914","Omari Project (ACCI)","5180/0820170804","312.00","TPP - Home Care","190363375","09/08/2017","Mental Health Assesment & Care Management","MH Care Purchasing (Spot Placements)","R5420"
"Wolverhampton City Council","http://opendatacommunities.org/id/metropolitan-district-council/wolverhampton","716914","Omari Project (ACCI)","5180/0820170804","312.00","TPP - Home Care","190363375","09/08/2017","Mental Health Assesment & Care Management","MH Care Purchasing (Spot Placements)","R5420"
"Wolverhampton City Council","http://opendatacommunities.org/id/metropolitan-district-council/wolverhampton","716914","Omari Project (ACCI)","5183/0820170804","312.00","TPP - Home Care","190363377","09/08/2017","Mental Health Assesment & Care Management","MH Care Purchasing (Spot Placements)","R5420"
"Wolverhampton City Council","http://opendatacommunities.org/id/metropolitan-district-council/wolverhampton","716914","Omari Project (ACCI)","O36620170804","416.00","TPP - Home Care","190363382","09/08/2017","Mental Health Assesment & Care Management","MH Care Purchasing (Spot Placements)","R5420"
"Wolverhampton City Council","http://opendatacommunities.org/id/metropolitan-district-council/wolverhampton","716914","Omari Project (ACCI)","ACCI/5188/02","2,083.33","TPP - Social Care Support Services","130183988","25/08/2017","Early Intervention","Transformation Challenge Award","R5501"
"Wolverhampton City Council","http://opendatacommunities.org/id/metropolitan-district-council/wolverhampton","716915","PAMS Assessments Limited","2096","1,320.00","Training Expenses","130181139","09/08/2017","Specialist Support","Head of Service Specialist Intensive Support Service","R1650"
"Wolverhampton City Council","http://opendatacommunities.org/id/metropolitan-district-council/wolverhampton","716917","Mr Jeremy Weston QC","INVJW3","42,200.00","Services - Professional Fees","130184253","25/08/2017","Legal Services","Centralised External Legal Costs","R4400"
"Wolverhampton City Council","http://opendatacommunities.org/id/metropolitan-district-council/wolverhampton","716939","Online Ergonomics Ltd","0000127535","33.06","Equipment - Purchase","130184536","16/08/2017","Safeguarding","Head of Service Quality and Safeguarding","R4000"
"Wolverhampton City Council","http://opendatacommunities.org/id/metropolitan-district-council/wolverhampton","716939","Online Ergonomics Ltd","0000127535","46.20","Equipment - Purchase","130184536","16/08/2017","Safeguarding","Head of Service Quality and Safeguarding","R4000"
"Wolverhampton City Council","http://opendatacommunities.org/id/metropolitan-district-council/wolverhampton","717009","Gloucestershire County Council","1800455103","2,250.00","TPP - Payments to Local Authorities","130185121","30/08/2017","Looked After Children","Adoption and Residence Team & Allowances","R5100"
"Wolverhampton City Council","http://opendatacommunities.org/id/metropolitan-district-council/wolverhampton","717045","Exactrak","SLS/30007662","495.00","Equipment - R & M","130181715","16/08/2017","Highways Maintenance","Winter Maintenance","R4003"
"Wolverhampton City Council","http://opendatacommunities.org/id/metropolitan-district-council/wolverhampton","717072","Pick Everard","48876","1,920.00","External Professional Fees","130182903","11/08/2017","-","Primary Expansion Programme","C6002"
"Wolverhampton City Council","http://opendatacommunities.org/id/metropolitan-district-council/wolverhampton","717072","Pick Everard","PC1151","7,584.00","External Professional Fees","130183530","09/08/2017","-","Primary Expansion Programme","C6002"
"Wolverhampton City Council","http://opendatacommunities.org/id/metropolitan-district-council/wolverhampton","717089","Mr Tony Watkin","INVTW11","2,220.00","Services - Professional Fees","130183019","23/08/2017","Revenues & Benefits","Revenues","R4400"
"Wolverhampton City Council","http://opendatacommunities.org/id/metropolitan-district-council/wolverhampton","717090","The Solicitors Group","E46150","327.00","Training Expenses","130181466","02/08/2017","Human Resources","Centralised Training","R1650"
"Wolverhampton City Council","http://opendatacommunities.org/id/metropolitan-district-council/wolverhampton","717090","The Solicitors Group","E46149","436.00","Training Expenses","130181465","02/08/2017","Human Resources","Centralised Training","R1650"
"Wolverhampton City Council","http://opendatacommunities.org/id/metropolitan-district-council/wolverhampton","717090","The Solicitors Group","E46381","144.00","Training Expenses","130181716","16/08/2017","Human Resources","Centralised Training","R1650"
"Wolverhampton City Council","http://opendatacommunities.org/id/metropolitan-district-council/wolverhampton","717109","Westcroft School","Westcroft 15x Planned Place Shortfall 2017/18","150,000.00","Grant Payments","190362377","02/08/2017","Schools","Special Schools Top Up Contingency","R4700"
"Wolverhampton City Council","http://opendatacommunities.org/id/metropolitan-district-council/wolverhampton","717109","Westcroft School","Westcroft 15x Planned Place Shortfall 2015/16","728.00","Grant Payments","190362376","02/08/2017","Schools","Special Schools Top Up Contingency","R4700"
"Wolverhampton City Council","http://opendatacommunities.org/id/metropolitan-district-council/wolverhampton","717125","New Chapters Fostercare","P148808 20081720170801","2,759.32","TPP - Placement Foster Care Agency","190362686","02/08/2017","Looked After Children","Out of City Placements","R5602"
"Wolverhampton City Council","http://opendatacommunities.org/id/metropolitan-district-council/wolverhampton","717125","New Chapters Fostercare","P148808 20081720170801","2,759.32","TPP - Placement Foster Care Agency","190362686","02/08/2017","Looked After Children","Out of City Placements","R5602"
"Wolverhampton City Council","http://opendatacommunities.org/id/metropolitan-district-council/wolverhampton","717125","New Chapters Fostercare","P151641 17091720170829","2,759.32","TPP - Placement Foster Care Agency","190368925","30/08/2017","Looked After Children","Out of City Placements","R5602"
"Wolverhampton City Council","http://opendatacommunities.org/id/metropolitan-district-council/wolverhampton","717125","New Chapters Fostercare","P151641 17091720170829","2,759.32","TPP - Placement Foster Care Agency","190368925","30/08/2017","Looked After Children","Out of City Placements","R5602"
"Wolverhampton City Council","http://opendatacommunities.org/id/metropolitan-district-council/wolverhampton","717164","Adoption Focus","FSAF 17 547","28,667.00","TPP - Payments to voluntary groups","130182494","30/08/2017","Looked After Children","Adoption and Residence Team & Allowances","R5200"
"Wolverhampton City Council","http://opendatacommunities.org/id/metropolitan-district-council/wolverhampton","717167","Foster Talk","14232","20.25","Materials","130181976","23/08/2017","Looked After Children","Fostering Team & Allowances","R4007"
"Wolverhampton City Council","http://opendatacommunities.org/id/metropolitan-district-council/wolverhampton","717189","Bromford Housing Group Limited","P151410 17091720170829","4,537.96","TPP - Residential Care - Long Term","190368820","30/08/2017","Learning Disabilities Care Purchasing","LD Care Purchasing (Spot Placements)","R5400"
"Wolverhampton City Council","http://opendatacommunities.org/id/metropolitan-district-council/wolverhampton","717189","Bromford Housing Group Limited","P151410 17091720170829","4,537.96","TPP - Residential Care - Long Term","190368820","30/08/2017","Learning Disabilities Care Purchasing","LD Care Purchasing (Spot Placements)","R5400"
"Wolverhampton City Council","http://opendatacommunities.org/id/metropolitan-district-council/wolverhampton","717189","Bromford Housing Group Limited","P151410 17091720170829","5,192.00","TPP - Residential Care - Long Term","190368820","30/08/2017","Learning Disabilities Care Purchasing","LD Care Purchasing (Spot Placements)","R5400"
"Wolverhampton City Council","http://opendatacommunities.org/id/metropolitan-district-council/wolverhampton","717189","Bromford Housing Group Limited","P151410 17091720170829","4,536.00","TPP - Residential Care - Long Term","190368820","30/08/2017","Learning Disabilities Care Purchasing","LD Care Purchasing (Spot Placements)","R5400"
"Wolverhampton City Council","http://opendatacommunities.org/id/metropolitan-district-council/wolverhampton","717189","Bromford Housing Group Limited","P151410 17091720170829","4,537.96","TPP - Residential Care - Long Term","190368820","30/08/2017","Learning Disabilities Care Purchasing","LD Care Purchasing (Spot Placements)","R5400"
"Wolverhampton City Council","http://opendatacommunities.org/id/metropolitan-district-council/wolverhampton","717189","Bromford Housing Group Limited","P151410 17091720170829","4,537.96","TPP - Residential Care - Long Term","190368820","30/08/2017","Learning Disabilities Care Purchasing","LD Care Purchasing (Spot Placements)","R5400"
"Wolverhampton City Council","http://opendatacommunities.org/id/metropolitan-district-council/wolverhampton","717189","Bromford Housing Group Limited","P151410 17091720170829","4,537.96","TPP - Residential Care - Long Term","190368820","30/08/2017","Learning Disabilities Care Purchasing","LD Care Purchasing (Spot Placements)","R5400"
"Wolverhampton City Council","http://opendatacommunities.org/id/metropolitan-district-council/wolverhampton","717189","Bromford Housing Group Limited","P151410 17091720170829","-1,134.49","TPP - Residential Care - Long Term","190368820","30/08/2017","Learning Disabilities Care Purchasing","LD Care Purchasing (Spot Placements)","R5400"
"Wolverhampton City Council","http://opendatacommunities.org/id/metropolitan-district-council/wolverhampton","717189","Bromford Housing Group Limited","P151410 17091720170829","4,537.96","TPP - Residential Care - Long Term","190368820","30/08/2017","Learning Disabilities Care Purchasing","LD Care Purchasing (Spot Placements)","R5400"
"Wolverhampton City Council","http://opendatacommunities.org/id/metropolitan-district-council/wolverhampton","717189","Bromford Housing Group Limited","P148842 20081720170731","4,537.96","TPP - Residential Care - Long Term","190362289","02/08/2017","Learning Disabilities Care Purchasing","LD Care Purchasing (Spot Placements)","R5400"
"Wolverhampton City Council","http://opendatacommunities.org/id/metropolitan-district-council/wolverhampton","717189","Bromford Housing Group Limited","P148842 20081720170731","4,537.96","TPP - Residential Care - Long Term","190362289","02/08/2017","Learning Disabilities Care Purchasing","LD Care Purchasing (Spot Placements)","R5400"
"Wolverhampton City Council","http://opendatacommunities.org/id/metropolitan-district-council/wolverhampton","717189","Bromford Housing Group Limited","P148842 20081720170731","4,537.96","TPP - Residential Care - Long Term","190362289","02/08/2017","Learning Disabilities Care Purchasing","LD Care Purchasing (Spot Placements)","R5400"
"Wolverhampton City Council","http://opendatacommunities.org/id/metropolitan-district-council/wolverhampton","717189","Bromford Housing Group Limited","P148842 20081720170731","4,537.96","TPP - Residential Care - Long Term","190362289","02/08/2017","Learning Disabilities Care Purchasing","LD Care Purchasing (Spot Placements)","R5400"
"Wolverhampton City Council","http://opendatacommunities.org/id/metropolitan-district-council/wolverhampton","717189","Bromford Housing Group Limited","P148842 20081720170731","-2,488.80","TPP - Residential Care - Long Term","190362289","02/08/2017","Learning Disabilities Care Purchasing","LD Care Purchasing (Spot Placements)","R5400"
"Wolverhampton City Council","http://opendatacommunities.org/id/metropolitan-district-council/wolverhampton","717189","Bromford Housing Group Limited","P148842 20081720170731","5,192.00","TPP - Residential Care - Long Term","190362289","02/08/2017","Learning Disabilities Care Purchasing","LD Care Purchasing (Spot Placements)","R5400"
"Wolverhampton City Council","http://opendatacommunities.org/id/metropolitan-district-council/wolverhampton","717189","Bromford Housing Group Limited","P148842 20081720170731","4,536.00","TPP - Residential Care - Long Term","190362289","02/08/2017","Learning Disabilities Care Purchasing","LD Care Purchasing (Spot Placements)","R5400"
"Wolverhampton City Council","http://opendatacommunities.org/id/metropolitan-district-council/wolverhampton","717189","Bromford Housing Group Limited","P148842 20081720170731","4,537.96","TPP - Residential Care - Long Term","190362289","02/08/2017","Learning Disabilities Care Purchasing","LD Care Purchasing (Spot Placements)","R5400"
"Wolverhampton City Council","http://opendatacommunities.org/id/metropolitan-district-council/wolverhampton","717189","Bromford Housing Group Limited","P148842 20081720170731","4,537.96","TPP - Residential Care - Long Term","190362289","02/08/2017","Learning Disabilities Care Purchasing","LD Care Purchasing (Spot Placements)","R5400"
"Wolverhampton City Council","http://opendatacommunities.org/id/metropolitan-district-council/wolverhampton","717189","Bromford Housing Group Limited","P148842 20081720170731","4,537.96","TPP - Residential Care - Long Term","190362289","02/08/2017","Learning Disabilities Care Purchasing","LD Care Purchasing (Spot Placements)","R5400"
"Wolverhampton City Council","http://opendatacommunities.org/id/metropolitan-district-council/wolverhampton","717191","Movecorp Limited","97010","440.00","Storage","130183991","30/08/2017","Housing Revenue Account","Duty Office","R4910"
"Wolverhampton City Council","http://opendatacommunities.org/id/metropolitan-district-council/wolverhampton","717191","Movecorp Limited","96704","144.00","Storage","130182495","23/08/2017","Safeguarding","Court of Protection, Funerals and Protection of Property","R4910"
"Wolverhampton City Council","http://opendatacommunities.org/id/metropolitan-district-council/wolverhampton","717191","Movecorp Limited","95871","700.00","Furniture","130179511","02/08/2017","Adult Education","Central Costs","R4004"
"Wolverhampton City Council","http://opendatacommunities.org/id/metropolitan-district-council/wolverhampton","717191","Movecorp Limited","97024","440.00","Storage","130183992","30/08/2017","Housing Revenue Account","Duty Office","R4910"
"Wolverhampton City Council","http://opendatacommunities.org/id/metropolitan-district-council/wolverhampton","717191","Movecorp Limited","96312","5,899.98","Storage","130181279","16/08/2017","Corporate Asset Management","Future Space Decant Area","R4910"
"Wolverhampton City Council","http://opendatacommunities.org/id/metropolitan-district-council/wolverhampton","717191","Movecorp Limited","96480","354.00","Storage","130181977","16/08/2017","Housing Revenue Account","Duty Office","R4910"
"Wolverhampton City Council","http://opendatacommunities.org/id/metropolitan-district-council/wolverhampton","717191","Movecorp Limited","96319","828.10","Storage","130181467","16/08/2017","Corporate Asset Management","Future Space Decant Area","R4910"
"Wolverhampton City Council","http://opendatacommunities.org/id/metropolitan-district-council/wolverhampton","717215","908 Ltd","16750","58.00","Materials","130185474","23/08/2017","Bereavement Services","Crematorium","R4007"
"Wolverhampton City Council","http://opendatacommunities.org/id/metropolitan-district-council/wolverhampton","717215","908 Ltd","16831","192.00","Materials","130184538","16/08/2017","Bereavement Services","Crematorium","R4007"
"Wolverhampton City Council","http://opendatacommunities.org/id/metropolitan-district-council/wolverhampton","717281","Bow Street School Ltd","WOLV/011","14,712.80","TPP - Independent Schools","130182633","02/08/2017","Standards and Vulnerable Pupils","SEN Education OOC","R5036"
"Wolverhampton City Council","http://opendatacommunities.org/id/metropolitan-district-council/wolverhampton","717303","UK Document Management","13836","19,101.50","Services - Professional Fees","130186125","30/08/2017","Human Resources","HR Advice","R4400"
"Wolverhampton City Council","http://opendatacommunities.org/id/metropolitan-district-council/wolverhampton","717336","P W Media & Publishing Ltd","33238","325.00","Marketing \ Non-staff advertising","130181978","02/08/2017","Visitor Economy","Audience Development","R4317"
"Wolverhampton City Council","http://opendatacommunities.org/id/metropolitan-district-council/wolverhampton","717371","ADEPT","2017015","1,200.00","Subscriptions","130186467","30/08/2017","Strategic Director Place","Strategic Director Place","R4701"
"Wolverhampton City Council","http://opendatacommunities.org/id/metropolitan-district-council/wolverhampton","717408","Locala Community Partnerships","A0005808a","239.00","TPP - Public Health Contracts","190366751","23/08/2017","Contracts","Sexual Health","R5060"
"Wolverhampton City Council","http://opendatacommunities.org/id/metropolitan-district-council/wolverhampton","717421","The Child Psychology Service","921","202.75","Direct Work With Children","130185475","30/08/2017","Looked After Children","Adoption Support Fund","R6310"
"Wolverhampton City Council","http://opendatacommunities.org/id/metropolitan-district-council/wolverhampton","717449","Central London Com. Healthcare NHS trust","2000002012 GUM April 2017","266.00","TPP - Public Health Contracts","190364301","11/08/2017","Contracts","Sexual Health","R5060"
"Wolverhampton City Council","http://opendatacommunities.org/id/metropolitan-district-council/wolverhampton","717449","Central London Com. Healthcare NHS trust","2000002197 GUM June 2017","266.00","TPP - Public Health Contracts","190364300","11/08/2017","Contracts","Sexual Health","R5060"
"Wolverhampton City Council","http://opendatacommunities.org/id/metropolitan-district-council/wolverhampton","717453","SHB Hire Ltd","10844465","462.00","Hire of Vehicles","190364029","11/08/2017","Fleet Services","Fleet Management","R3200"
"Wolverhampton City Council","http://opendatacommunities.org/id/metropolitan-district-council/wolverhampton","717453","SHB Hire Ltd","10844467","462.00","Hire of Vehicles","190364031","11/08/2017","Fleet Services","Fleet Management","R3200"
"Wolverhampton City Council","http://opendatacommunities.org/id/metropolitan-district-council/wolverhampton","717453","SHB Hire Ltd","10844466","462.00","Hire of Vehicles","190364030","11/08/2017","Fleet Services","Fleet Management","R3200"
"Wolverhampton City Council","http://opendatacommunities.org/id/metropolitan-district-council/wolverhampton","717579","TEICCAF","181","500.00","Subscriptions","130185364","23/08/2017","Audit Services","Audit Services","R4701"
"Wolverhampton City Council","http://opendatacommunities.org/id/metropolitan-district-council/wolverhampton","717581","AndersElite Ltd","1374555","960.00","Agency Staff","130181980","18/08/2017","Capital Programme","Head of Projects and Works","R1100"
"Wolverhampton City Council","http://opendatacommunities.org/id/metropolitan-district-council/wolverhampton","717581","AndersElite Ltd","1374553","2,400.00","Agency Staff","130181979","16/08/2017","Head of Corporate Landlord","Property Services - Head of Service","R1100"
"Wolverhampton City Council","http://opendatacommunities.org/id/metropolitan-district-council/wolverhampton","717581","AndersElite Ltd","1372834","3,000.00","Agency Staff","130179704","02/08/2017","Head of Corporate Landlord","Property Services - Head of Service","R1100"
"Wolverhampton City Council","http://opendatacommunities.org/id/metropolitan-district-council/wolverhampton","717581","AndersElite Ltd","1373682","2,400.00","Agency Staff","130180811","09/08/2017","Head of Corporate Landlord","Property Services - Head of Service","R1100"
"Wolverhampton City Council","http://opendatacommunities.org/id/metropolitan-district-council/wolverhampton","717581","AndersElite Ltd","1376562","3,000.00","Agency Staff","130183993","30/08/2017","Head of Corporate Landlord","Property Services - Head of Service","R1100"
"Wolverhampton City Council","http://opendatacommunities.org/id/metropolitan-district-council/wolverhampton","717581","AndersElite Ltd","1374556","1,600.00","Agency Staff","130181981","23/08/2017","Capital Programme","Head of Projects and Works","R1100"
"Wolverhampton City Council","http://opendatacommunities.org/id/metropolitan-district-council/wolverhampton","717581","AndersElite Ltd","1372836","1,440.00","Agency Staff","130179705","02/08/2017","Capital Programme","Head of Projects and Works","R1100"
"Wolverhampton City Council","http://opendatacommunities.org/id/metropolitan-district-council/wolverhampton","717581","AndersElite Ltd","1376565","960.00","Agency Staff","130183994","30/08/2017","Capital Programme","Head of Projects and Works","R1100"
"Wolverhampton City Council","http://opendatacommunities.org/id/metropolitan-district-council/wolverhampton","717581","AndersElite Ltd","1375578","1,600.00","Agency Staff","130182635","23/08/2017","Capital Programme","Head of Projects and Works","R1100"
"Wolverhampton City Council","http://opendatacommunities.org/id/metropolitan-district-council/wolverhampton","717581","AndersElite Ltd","1375577","3,000.00","Agency Staff","130182634","23/08/2017","Head of Corporate Landlord","Property Services - Head of Service","R1100"
"Wolverhampton City Council","http://opendatacommunities.org/id/metropolitan-district-council/wolverhampton","717590","Natural History Musuem","004833","655.00","Services - Professional Fees","130180308","04/08/2017","Visitor Economy","Wildlife Photogragher of the year - NPO ACE WAG","R4400"
"Wolverhampton City Council","http://opendatacommunities.org/id/metropolitan-district-council/wolverhampton","717591","Engaging Communities Staffordshire CIC","265","16,190.75","TPP - Social Care Support Services","130182319","16/08/2017","Head of Commissioning","Local Reform and Community Voices Grant","R5501"
"Wolverhampton City Council","http://opendatacommunities.org/id/metropolitan-district-council/wolverhampton","717591","Engaging Communities Staffordshire CIC","266","4,321.08","TPP - Social Care Support Services","130182320","16/08/2017","Head of Commissioning","Local Reform and Community Voices Grant","R5501"
"Wolverhampton City Council","http://opendatacommunities.org/id/metropolitan-district-council/wolverhampton","717616","Lisa Williams Consulting","0167","1,073.10","Services - Professional Fees","130185969","25/08/2017","Headstart","Headstart Phase 3","R4400"
"Wolverhampton City Council","http://opendatacommunities.org/id/metropolitan-district-council/wolverhampton","717652","Scotts Hire Limited","186075","378.00","Hire of Plant","130183021","25/08/2017","Environmental Maintenance","Ground Maintenance West","R3201"
"Wolverhampton City Council","http://opendatacommunities.org/id/metropolitan-district-council/wolverhampton","717652","Scotts Hire Limited","186076","378.00","Hire of Plant","130183022","25/08/2017","Environmental Maintenance","Ground Maintenance West","R3201"
"Wolverhampton City Council","http://opendatacommunities.org/id/metropolitan-district-council/wolverhampton","717658","Elston Hall T/A Palmers Cross Primary","SEN Resource Base Spring 2016/17 - Palmers Cross Primary Academy","8,053.50","Grant Payments","190362827","04/08/2017","Schools","Special Schools Top Up Contingency","R4700"
"Wolverhampton City Council","http://opendatacommunities.org/id/metropolitan-district-council/wolverhampton","717658","Elston Hall T/A Palmers Cross Primary","SEN Resource Base Autumn 2016/17 - Palmers Cross Primary Academy","9,848.31","Grant Payments","190362826","04/08/2017","Schools","Special Schools Top Up Contingency","R4700"
"Wolverhampton City Council","http://opendatacommunities.org/id/metropolitan-district-council/wolverhampton","717672","Longman Jones","P14916420170728","370.90","Client Allowances","190361745","02/08/2017","Looked After Children","LAC Transitions Team","R6301"
"Wolverhampton City Council","http://opendatacommunities.org/id/metropolitan-district-council/wolverhampton","717672","Longman Jones","P15139320170825","370.90","Client Allowances","190368353","30/08/2017","Looked After Children","LAC Transitions Team","R6301"
"Wolverhampton City Council","http://opendatacommunities.org/id/metropolitan-district-council/wolverhampton","717673","Nageena Khalique QC","3565","277.50","Services - Professional Fees","130180973","09/08/2017","Legal Services","Centralised External Legal Costs","R4400"
"Wolverhampton City Council","http://opendatacommunities.org/id/metropolitan-district-council/wolverhampton","717673","Nageena Khalique QC","3561","277.50","Services - Professional Fees","130181717","09/08/2017","Legal Services","Centralised External Legal Costs","R4400"
"Wolverhampton City Council","http://opendatacommunities.org/id/metropolitan-district-council/wolverhampton","717684","Jim Hudson","15LC - 016","450.00","Rent","130180647","02/08/2017","Child Protection","No Recourse to Public Funds - CIN/CP","R2200"
"Wolverhampton City Council","http://opendatacommunities.org/id/metropolitan-district-council/wolverhampton","717702","Matthews Environmental Solutions Limited","1580","2,070.00","R&M - Departmental planned (external)","130182321","16/08/2017","Bereavement Services","Crematorium","R2001"
"Wolverhampton City Council","http://opendatacommunities.org/id/metropolitan-district-council/wolverhampton","717710","British Gas Trading Ltd","107310717","2,219.10","Grants paid out","130183168","25/08/2017","-","Housing General Fund General Schemes - Affordable Warmth","C5000"
"Wolverhampton City Council","http://opendatacommunities.org/id/metropolitan-district-council/wolverhampton","717710","British Gas Trading Ltd","108310717","1,882.20","Grants paid out","130183169","25/08/2017","-","Housing General Fund General Schemes - Affordable Warmth","C5000"
"Wolverhampton City Council","http://opendatacommunities.org/id/metropolitan-district-council/wolverhampton","717710","British Gas Trading Ltd","110310717","3,471.23","Grants paid out","130183171","25/08/2017","-","Housing General Fund General Schemes - Affordable Warmth","C5000"
"Wolverhampton City Council","http://opendatacommunities.org/id/metropolitan-district-council/wolverhampton","717710","British Gas Trading Ltd","104310717","989.73","Grants paid out","130183165","25/08/2017","-","Housing General Fund General Schemes - Affordable Warmth","C5000"
"Wolverhampton City Council","http://opendatacommunities.org/id/metropolitan-district-council/wolverhampton","717710","British Gas Trading Ltd","103310717","2,851.89","Grants paid out","130183164","25/08/2017","-","Housing General Fund General Schemes - Affordable Warmth","C5000"
"Wolverhampton City Council","http://opendatacommunities.org/id/metropolitan-district-council/wolverhampton","717710","British Gas Trading Ltd","102310717","3,052.67","Grants paid out","130183163","25/08/2017","-","Housing General Fund General Schemes - Affordable Warmth","C5000"
"Wolverhampton City Council","http://opendatacommunities.org/id/metropolitan-district-council/wolverhampton","717710","British Gas Trading Ltd","109310717","2,010.97","Grants paid out","130183170","25/08/2017","-","Housing General Fund General Schemes - Affordable Warmth","C5000"
"Wolverhampton City Council","http://opendatacommunities.org/id/metropolitan-district-council/wolverhampton","717710","British Gas Trading Ltd","106310717","2,178.59","Grants paid out","130183167","25/08/2017","-","Housing General Fund General Schemes - Affordable Warmth","C5000"
"Wolverhampton City Council","http://opendatacommunities.org/id/metropolitan-district-council/wolverhampton","717710","British Gas Trading Ltd","105310717","1,963.54","Grants paid out","130183166","25/08/2017","-","Housing General Fund General Schemes - Affordable Warmth","C5000"
"Wolverhampton City Council","http://opendatacommunities.org/id/metropolitan-district-council/wolverhampton","717737","Direct Digital Controls Limited","4526","743.16","R&M - Departmental planned (internal)","130183369","25/08/2017","Maintenance Programme","Centralised R&M","R2000"
"Wolverhampton City Council","http://opendatacommunities.org/id/metropolitan-district-council/wolverhampton","717737","Direct Digital Controls Limited","4527","185.80","R&M - Departmental planned (internal)","130183370","25/08/2017","Maintenance Programme","Centralised R&M","R2000"
"Wolverhampton City Council","http://opendatacommunities.org/id/metropolitan-district-council/wolverhampton","717743","Sanderson Funerals","HMCC 015","306.96","Hire of Vehicles","130184801","16/08/2017","Democratic Services","Coroners Service","R3200"
"Wolverhampton City Council","http://opendatacommunities.org/id/metropolitan-district-council/wolverhampton","717743","Sanderson Funerals","HMCH 015","351.00","Hire of Vehicles","130184802","16/08/2017","Democratic Services","Coroners Service","R3200"
"Wolverhampton City Council","http://opendatacommunities.org/id/metropolitan-district-council/wolverhampton","717743","Sanderson Funerals","HMCC 016","529.98","Hire of Vehicles","130185123","25/08/2017","Democratic Services","Coroners Service","R3200"
"Wolverhampton City Council","http://opendatacommunities.org/id/metropolitan-district-council/wolverhampton","717743","Sanderson Funerals","HMCH 016","268.00","Hire of Vehicles","130185124","25/08/2017","Democratic Services","Coroners Service","R3200"
"Wolverhampton City Council","http://opendatacommunities.org/id/metropolitan-district-council/wolverhampton","717755","Toybox Child Care Services","P15085920170821","288.00","Client Allowances","190366735","23/08/2017","Looked After Children","Looked After Team 2","R6301"
"Wolverhampton City Council","http://opendatacommunities.org/id/metropolitan-district-council/wolverhampton","717755","Toybox Child Care Services","P14986420170804","96.00","Client Allowances","190363617","09/08/2017","Looked After Children","Fostering Team & Allowances","R6301"
"Wolverhampton City Council","http://opendatacommunities.org/id/metropolitan-district-council/wolverhampton","717755","Toybox Child Care Services","P15139120170825","584.00","Client Allowances","190368351","30/08/2017","Looked After Children","Looked After Team 2","R6301"
"Wolverhampton City Council","http://opendatacommunities.org/id/metropolitan-district-council/wolverhampton","717755","Toybox Child Care Services","P15139120170825","276.00","Client Allowances","190368351","30/08/2017","Looked After Children","Looked After Team 2","R6301"
"Wolverhampton City Council","http://opendatacommunities.org/id/metropolitan-district-council/wolverhampton","717767","Henry Howard Finance Plc","WCC007","385.37","Services - Supplies and Services to service users","130182174","09/08/2017","Learning Disability Provider","City Links","R4408"
"Wolverhampton City Council","http://opendatacommunities.org/id/metropolitan-district-council/wolverhampton","717769","Hilton Main Lighting & Connections Ltd","414","5,203.44","R&M - Departmental response (external)","130179940","04/08/2017","Street Lighting","Street Lighting Maintenance","R2003"
"Wolverhampton City Council","http://opendatacommunities.org/id/metropolitan-district-council/wolverhampton","717783","MacDonald & Company","0000075239","1,500.00","Agency Staff","130183023","23/08/2017","Corporate Asset Management","Strategic Asset Management Team","R1100"
"Wolverhampton City Council","http://opendatacommunities.org/id/metropolitan-district-council/wolverhampton","717783","MacDonald & Company","0000074741","1,500.00","Agency Staff","130178595","09/08/2017","Corporate Asset Management","Strategic Asset Management Team","R1100"
"Wolverhampton City Council","http://opendatacommunities.org/id/metropolitan-district-council/wolverhampton","717783","MacDonald & Company","0000073970","1,500.00","Agency Staff","130172720","09/08/2017","Corporate Asset Management","Strategic Asset Management Team","R1100"
"Wolverhampton City Council","http://opendatacommunities.org/id/metropolitan-district-council/wolverhampton","717783","MacDonald & Company","0000074873","3,000.00","Agency Staff","130179706","09/08/2017","Corporate Asset Management","Strategic Asset Management Team","R1100"
"Wolverhampton City Council","http://opendatacommunities.org/id/metropolitan-district-council/wolverhampton","717783","MacDonald & Company","0000074494","2,700.00","Agency Staff","130176757","09/08/2017","Corporate Asset Management","Strategic Asset Management Team","R1100"
"Wolverhampton City Council","http://opendatacommunities.org/id/metropolitan-district-council/wolverhampton","717783","MacDonald & Company","0000073740","1,200.00","Agency Staff","130171939","09/08/2017","Corporate Asset Management","Strategic Asset Management Team","R1100"
"Wolverhampton City Council","http://opendatacommunities.org/id/metropolitan-district-council/wolverhampton","717783","MacDonald & Company","0000074233","3,000.00","Agency Staff","130174790","09/08/2017","Corporate Asset Management","Strategic Asset Management Team","R1100"
"Wolverhampton City Council","http://opendatacommunities.org/id/metropolitan-district-council/wolverhampton","717811","Key Properties (Mijo Ltd)","P14986820170804","1,209.00","Client Allowances","190363621","09/08/2017","Looked After Children","LAC Transitions Team","R6301"
"Wolverhampton City Council","http://opendatacommunities.org/id/metropolitan-district-council/wolverhampton","717890","Preventx Limited","PY199349","242.00","TPP - Public Health Contracts","130180648","16/08/2017","Contracts","Sexual Health","R5060"
"Wolverhampton City Council","http://opendatacommunities.org/id/metropolitan-district-council/wolverhampton","717890","Preventx Limited","PY199349","-242.00","TPP - Public Health Contracts","130180648","16/08/2017","Contracts","Sexual Health","R5060"
"Wolverhampton City Council","http://opendatacommunities.org/id/metropolitan-district-council/wolverhampton","717890","Preventx Limited","PY199349","242.00","TPP - Public Health Contracts","130180648","16/08/2017","Contracts","Sexual Health","R5060"
"Wolverhampton City Council","http://opendatacommunities.org/id/metropolitan-district-council/wolverhampton","717890","Preventx Limited","PY223453","82.00","TPP - Public Health Contracts","130180649","16/08/2017","Contracts","Sexual Health","R5060"
"Wolverhampton City Council","http://opendatacommunities.org/id/metropolitan-district-council/wolverhampton","717890","Preventx Limited","PY247569","340.00","TPP - Public Health Contracts","130180650","16/08/2017","Contracts","Sexual Health","R5060"
"Wolverhampton City Council","http://opendatacommunities.org/id/metropolitan-district-council/wolverhampton","717890","Preventx Limited","PY247569","-340.00","TPP - Public Health Contracts","130180650","16/08/2017","Contracts","Sexual Health","R5060"
"Wolverhampton City Council","http://opendatacommunities.org/id/metropolitan-district-council/wolverhampton","717890","Preventx Limited","PY247569","340.00","TPP - Public Health Contracts","130180650","16/08/2017","Contracts","Sexual Health","R5060"
"Wolverhampton City Council","http://opendatacommunities.org/id/metropolitan-district-council/wolverhampton","717890","Preventx Limited","PY154138","102.00","TPP - Public Health Contracts","130185127","18/08/2017","Contracts","Sexual Health","R5060"
"Wolverhampton City Council","http://opendatacommunities.org/id/metropolitan-district-council/wolverhampton","717894","Quality Solicitors CMHT","SB.KP.N1652.2-9904","4,056.25","Services - Professional Fees","190362390","02/08/2017","Child Protection","Head of Service - CINCP","R4400"
"Wolverhampton City Council","http://opendatacommunities.org/id/metropolitan-district-council/wolverhampton","717894","Quality Solicitors CMHT","SB.KP.N1652.2-9904-1","308.00","Services - Professional Fees","190362391","02/08/2017","Child Protection","Head of Service - CINCP","R4400"
"Wolverhampton City Council","http://opendatacommunities.org/id/metropolitan-district-council/wolverhampton","717922","Mr Matthew Maynard","INVMDM3","1,250.00","Services - Professional Fees","130183996","23/08/2017","Legal Services","Centralised External Legal Costs","R4400"
"Wolverhampton City Council","http://opendatacommunities.org/id/metropolitan-district-council/wolverhampton","717932","Servelec Synergy Limited","0033601034","4,432.00","Computing - Purchase of Software","130179707","02/08/2017","Early Intervention","HOS Early Intervention","R4531"
"Wolverhampton City Council","http://opendatacommunities.org/id/metropolitan-district-council/wolverhampton","717976","Localpad Ltd","0100","600.00","Computing - Licences","130183531","30/08/2017","Housing","Housing Public Health","R4535"
"Wolverhampton City Council","http://opendatacommunities.org/id/metropolitan-district-council/wolverhampton","717980","Phormium Ltd t/a Brannie Ties","3955","391.00","Clothing / Uniforms","130180651","09/08/2017","Customer Services","City Direct","R4201"
"Wolverhampton City Council","http://opendatacommunities.org/id/metropolitan-district-council/wolverhampton","717980","Phormium Ltd t/a Brannie Ties","3982","123.40","Clothing / Uniforms","130182906","23/08/2017","Bereavement Services","Cemeteries","R4201"
"Wolverhampton City Council","http://opendatacommunities.org/id/metropolitan-district-council/wolverhampton","717995","Barnardo Services Limited","242002187","2,500.00","TPP - Short Breaks","130181140","30/08/2017","Child Protection","Short Breaks","R5500"
